Workbook

Sheet (604)
B1: Jan | C1: Feb | D1: Mar | E1: Apr | F1: Total
A2: Sales
A3: =A11 -> COGS
A4: =A12 -> Operating Expenses
A5: =A13 -> Administrative Expenses
A6: =A14 -> Other Expenses
A7: Total Expenses
A8: Net Income
A10: Assumptions - Formula Inputs
A11: COGS
A12: Operating Expenses
A13: Administrative Expenses
A14: Other Expenses
A17: Ctrl + A = Highlight Table (when cursor is in table).
A18: If more than one cell is selectetd, Ctrl + Enter populates all the cells with whatever you put into the Active Cell
A19: Alt + = is keyboard shortcut for the SUM function
A20: Ctrl + 1 is keyboard shortcut for Format Cells Dialog Box
A21: Be careful of % Number Formatting. .04 is a number that when formatted as Percent Number Format it will appear as 4.00%.
A22: General Number Formatting will wipe away all Number Formatting (like Percentage).

Sheet (604an)
B1: Jan | C1: Feb | D1: Mar | E1: Apr | F1: Total
A2: Sales | B2: 1000 | C2: 1500 | D2: 1700 | E2: 2000 | F2: =SUM(B2:E2) -> 6200
A3: =A11 -> COGS | B3: =B$2*$B11 -> 450 | C3: =C$2*$B11 -> 675 | D3: =D$2*$B11 -> 765 | E3: =E$2*$B11 -> 900 | F3: 2790
A4: =A12 -> Operating Expenses | B4: =B$2*$B12 -> 100 | C4: 150 | D4: 170 | E4: 200 | F4: 620
A5: =A13 -> Administrative Expenses | B5: 25 | C5: 37.5 | D5: 42.5 | E5: 50 | F5: 155
A6: =A14 -> Other Expenses | B6: 50 | C6: 75 | D6: 85 | E6: =E$2*$B14 -> 100 | F6: 310
A7: Total Expenses | B7: =SUM(B3:B6) -> 625 | C7: =SUM(C3:C6) -> 937.5 | D7: =SUM(D3:D6) -> 1062.5 | E7: =SUM(E3:E6) -> 1250 | F7: 3875
A8: Net Income | B8: =B2-B7 -> 375 | C8: =C2-C7 -> 562.5 | D8: =D2-D7 -> 637.5 | E8: =E2-E7 -> 750 | F8: 2325
A10: Assumptions - Formula Inputs
A11: COGS | B11: 0.45
A12: Operating Expenses | B12: 0.1
A13: Administrative Expenses | B13: 0.025
A14: Other Expenses | B14: 0.05
A17: Ctrl + A = Highlight Table (when cursor is in table).
A18: If more than one cell is selectetd, Ctrl + Enter populates all the cells with whatever you put into the Active Cell
A19: Alt + = is keyboard shortcut for the SUM function
A20: Ctrl + 1 is keyboard shortcut for Format Cells Dialog Box
A21: Be careful of % Number Formatting. .04 is a number that when formatted as Percent Number Format it will appear as 4.00%.
A22: General Number Formatting will wipe away all Number Formatting (like Percentage).

Sheet (605)
A1: 1 | C1: 2 | E1: A1 = 1 | G1: B1 = 2 | I1: A1 = 1
A2: 2 | C2: 3 | E2: A2 = 2 | G2: B2 = 3 | I2: A2 = 2
C3: 4 | E3: A3 = | G3: B3 = 4 | I3: A3 = 4
A4: 4 | C4: 5 | E4: A4 = 4 | G4: B4 = 5 | I4: A4 = 4
C5: 8 | E5: A5 = | G5: B5 = 8 | I5: A5 = 8
A6: 3 | C6: 9 | E6: A6 = 3 | G6: B6 = 9 | I6: A6 = 3

Sheet (605an)
A1: 1 | C1: 2 | E1: A1 = 1 | G1: B1 = 2 | I1: A1 = 1 | K1: =IF(A1="",C1,A1) -> 1
A2: 2 | C2: 3 | E2: A2 = 2 | G2: B2 = 3 | I2: A2 = 2 | K2: 2
A3: 4 | C3: 4 | E3: A3 = | G3: B3 = 4 | I3: A3 = 4 | K3: 4
A4: 4 | C4: 5 | E4: A4 = 4 | G4: B4 = 5 | I4: A4 = 4 | K4: 4
A5: 8 | C5: 8 | E5: A5 = | G5: B5 = 8 | I5: A5 = 8 | K5: 8
A6: 3 | C6: 9 | E6: A6 = 3 | G6: B6 = 9 | I6: A6 = 3 | K6: 3

Sheet (398)
A1: For more info on the VLOOKUP function ,see this video: | G1: 03 Excel Series: Lookup functions
A2: For more info on the IFERROR function ,see this video: | G2: Excel Magic Trick #32: New 2007 IFERROR function
G3: Excel Magic Trick 333: #DIV/0! Error IF & ISERROR or ...
A4: For more info on the join symbol ,see this video: | G4: Excel Magic Trick # 166: CONCATENATE function & Ampersand
A5: Goal: 1) There are duplicates (like ABC) in List 1 2) Lookup all ABC and Cities in List 1 3) but only return ID from List 2 for Company-City match (like ABC-NY) 4) End result is shown in column C.
A7: Excel Magic Trick 398: VLOOKUP with Two Lookup Values (IFERROR function also) 2 lookup values | J7: <== Original Video
A9: List 1 | F9: List 2 | J9: 2003 solution
A11: Company | B11: City | C11: Returned ID | E11: Join | F11: Company | G11: City | H11: ID | J11: Returned ID
A12: ABC | B12: NY | C12: =IFERROR(VLOOKUP(A12&"-"&B12,$E$12:$H$22,4,0),"") -> 1734 | E12: =F12&"-"&G12 -> ABC-NY | F12: ABC | G12: NY | H12: 1734 | J12: =IF(ISERROR(VLOOKUP(A12&"-"&B12,$E$12:$H$22,4,0)),"",VLOOKUP(A12&"-"&B12,$E$12:$H$22,4,0)) -> 1734
A13: GEL | B13: GIG | C13: =IFERROR(VLOOKUP(A13&"-"&B13,$E$12:$H$22,4,0),"") -> 11916 | E13: =F13&"-"&G13 -> CBB-LAA | F13: CBB | G13: LAA | H13: 2260 | J13: =IF(ISERROR(VLOOKUP(A13&"-"&B13,$E$12:$H$22,4,0)),"",VLOOKUP(A13&"-"&B13,$E$12:$H$22,4,0)) -> 11916
A14: ABC | B14: CHI | E14: ACME-LAA | F14: ACME | G14: LAA | H14: 4119
A15: ACME | B15: PHE | E15: BBB-NY | F15: BBB | G15: NY | H15: 6480
A16: XYZ | B16: TIM | E16: DDD-PHE | F16: DDD | G16: PHE | H16: 7235
A17: MEMB | B17: LAA | C17: 12716 | E17: MIN-SEA | F17: MIN | G17: SEA | H17: 10674 | J17: 12716
A18: GEL | B18: NY | E18: XYZ-SS | F18: XYZ | G18: SS | H18: 8211
A19: MEMB | B19: SS | E19: FRE-SEA | F19: FRE | G19: SEA | H19: 12240
A20: ABC | B20: OLY | E20: GEL-GIG | F20: GEL | G20: GIG | H20: 11916
A21: ACME | B21: TLL | E21: TTT-SAE | F21: TTT | G21: SAE | H21: 17180
A22: XYZ | B22: FM | E22: MEMB-LAA | F22: MEMB | G22: LAA | H22: 12716
A23: ACME | B23: LAA | C23: 4119 | J23: 4119
A24: GEL | B24: HHB
A25: MEMB | B25: NY
A26: ABC | B26: SAE
A27: XYZ | B27: SS | C27: 8211 | J27: 8211
A28: ACME | B28: TX

Sheet (606)
A6: Goal: 1) There are duplicates (like ABC) in List 1 2) Lookup all ABC and Cities in List 1 3) but only return ID from List 2 for Company-City match (like ABC-NY) 4) End result is shown in column C.
A8: Excel Magic Trick 398: VLOOKUP with Two Lookup Values (IFERROR function also) 2 lookup values
A9: List 1 | E9: List 2 | I9: 2003 solution
A11: Company | B11: City | C11: Returned ID | E11: Company | F11: City | G11: ID | I11: Returned ID
A12: ABC | B12: NY | E12: ABC | F12: NY | G12: 1734 | I12: =IF(ISERROR(INDEX($G$12:$G$22,MATCH(A12&B12,$E$12:$E$22&$F$12:$F$22,0))),"",INDEX($G$12:$G$22,MATCH(A12&B12,$E$12:$E$22&$F$12:$F$22,0))) -> 1734
A13: GEL | B13: GIG | E13: CBB | F13: LAA | G13: 2260 | I13: =IF(ISERROR(INDEX($G$12:$G$22,MATCH(A13&B13,$E$12:$E$22&$F$12:$F$22,0))),"",INDEX($G$12:$G$22,MATCH(A13&B13,$E$12:$E$22&$F$12:$F$22,0))) -> 11916
A14: ABC | B14: CHI | E14: ACME | F14: LAA | G14: 4119 | I14: =IF(ISERROR(INDEX($G$12:$G$22,MATCH(A14&B14,$E$12:$E$22&$F$12:$F$22,0))),"",INDEX($G$12:$G$22,MATCH(A14&B14,$E$12:$E$22&$F$12:$F$22,0))) -> 
A15: ACME | B15: PHE | E15: BBB | F15: NY | G15: 6480 | I15: =IF(ISERROR(INDEX($G$12:$G$22,MATCH(A15&B15,$E$12:$E$22&$F$12:$F$22,0))),"",INDEX($G$12:$G$22,MATCH(A15&B15,$E$12:$E$22&$F$12:$F$22,0))) -> 
A16: XYZ | B16: TIM | E16: DDD | F16: PHE | G16: 7235 | I16: =IF(ISERROR(INDEX($G$12:$G$22,MATCH(A16&B16,$E$12:$E$22&$F$12:$F$22,0))),"",INDEX($G$12:$G$22,MATCH(A16&B16,$E$12:$E$22&$F$12:$F$22,0))) -> 
A17: MEMB | B17: LAA | E17: MIN | F17: SEA | G17: 10674 | I17: =IF(ISERROR(INDEX($G$12:$G$22,MATCH(A17&B17,$E$12:$E$22&$F$12:$F$22,0))),"",INDEX($G$12:$G$22,MATCH(A17&B17,$E$12:$E$22&$F$12:$F$22,0))) -> 12716
A18: GEL | B18: NY | E18: XYZ | F18: SS | G18: 8211 | I18: =IF(ISERROR(INDEX($G$12:$G$22,MATCH(A18&B18,$E$12:$E$22&$F$12:$F$22,0))),"",INDEX($G$12:$G$22,MATCH(A18&B18,$E$12:$E$22&$F$12:$F$22,0))) -> 
A19: MEMB | B19: SS | E19: FRE | F19: SEA | G19: 12240 | I19: =IF(ISERROR(INDEX($G$12:$G$22,MATCH(A19&B19,$E$12:$E$22&$F$12:$F$22,0))),"",INDEX($G$12:$G$22,MATCH(A19&B19,$E$12:$E$22&$F$12:$F$22,0))) -> 
A20: ABC | B20: OLY | E20: GEL | F20: GIG | G20: 11916 | I20: =IF(ISERROR(INDEX($G$12:$G$22,MATCH(A20&B20,$E$12:$E$22&$F$12:$F$22,0))),"",INDEX($G$12:$G$22,MATCH(A20&B20,$E$12:$E$22&$F$12:$F$22,0))) -> 
A21: ACME | B21: TLL | E21: TTT | F21: SAE | G21: 17180 | I21: =IF(ISERROR(INDEX($G$12:$G$22,MATCH(A21&B21,$E$12:$E$22&$F$12:$F$22,0))),"",INDEX($G$12:$G$22,MATCH(A21&B21,$E$12:$E$22&$F$12:$F$22,0))) -> 
A22: XYZ | B22: FM | E22: MEMB | F22: LAA | G22: 12716 | I22: =IF(ISERROR(INDEX($G$12:$G$22,MATCH(A22&B22,$E$12:$E$22&$F$12:$F$22,0))),"",INDEX($G$12:$G$22,MATCH(A22&B22,$E$12:$E$22&$F$12:$F$22,0))) -> 
A23: ACME | B23: LAA | I23: =IF(ISERROR(INDEX($G$12:$G$22,MATCH(A23&B23,$E$12:$E$22&$F$12:$F$22,0))),"",INDEX($G$12:$G$22,MATCH(A23&B23,$E$12:$E$22&$F$12:$F$22,0))) -> 4119
A24: GEL | B24: HHB | I24: =IF(ISERROR(INDEX($G$12:$G$22,MATCH(A24&B24,$E$12:$E$22&$F$12:$F$22,0))),"",INDEX($G$12:$G$22,MATCH(A24&B24,$E$12:$E$22&$F$12:$F$22,0))) -> 
A25: MEMB | B25: NY
A26: ABC | B26: SAE
A27: XYZ | B27: SS
A28: ACME | B28: TX

Sheet (606an)
A6: Goal: 1) There are duplicates (like ABC) in List 1 2) Lookup all ABC and Cities in List 1 3) but only return ID from List 2 for Company-City match (like ABC-NY) 4) End result is shown in column C.
A8: Excel Magic Trick 398: VLOOKUP with Two Lookup Values (IFERROR function also) 2 lookup values
A9: List 1 | E9: List 2 | I9: 2003 solution
A11: Company | B11: City | C11: Returned ID | E11: Company | F11: City | G11: ID | I11: Returned ID
A12: ABC | B12: NY | C12: =IFERROR(INDEX($G$12:$G$22,MATCH(A12&B12,$E$12:$E$22&$F$12:$F$22,0)),"") -> 1734 | E12: ABC | F12: NY | G12: 1734 | I12: =IF(ISERROR(INDEX($G$12:$G$22,MATCH(A12&B12,$E$12:$E$22&$F$12:$F$22,0))),"",INDEX($G$12:$G$22,MATCH(A12&B12,$E$12:$E$22&$F$12:$F$22,0))) -> 1734
A13: GEL | B13: GIG | C13: =IFERROR(INDEX($G$12:$G$22,MATCH(A13&B13,$E$12:$E$22&$F$12:$F$22,0)),"") -> 11916 | E13: CBB | F13: LAA | G13: 2260 | I13: =IF(ISERROR(INDEX($G$12:$G$22,MATCH(A13&B13,$E$12:$E$22&$F$12:$F$22,0))),"",INDEX($G$12:$G$22,MATCH(A13&B13,$E$12:$E$22&$F$12:$F$22,0))) -> 11916
A14: ABC | B14: CHI | C14: =IFERROR(INDEX($G$12:$G$22,MATCH(A14&B14,$E$12:$E$22&$F$12:$F$22,0)),"") ->  | E14: ACME | F14: LAA | G14: 4119 | I14: =IF(ISERROR(INDEX($G$12:$G$22,MATCH(A14&B14,$E$12:$E$22&$F$12:$F$22,0))),"",INDEX($G$12:$G$22,MATCH(A14&B14,$E$12:$E$22&$F$12:$F$22,0))) -> 
A15: ACME | B15: PHE | C15: =IFERROR(INDEX($G$12:$G$22,MATCH(A15&B15,$E$12:$E$22&$F$12:$F$22,0)),"") ->  | E15: BBB | F15: NY | G15: 6480 | I15: =IF(ISERROR(INDEX($G$12:$G$22,MATCH(A15&B15,$E$12:$E$22&$F$12:$F$22,0))),"",INDEX($G$12:$G$22,MATCH(A15&B15,$E$12:$E$22&$F$12:$F$22,0))) -> 
A16: XYZ | B16: TIM | C16: =IFERROR(INDEX($G$12:$G$22,MATCH(A16&B16,$E$12:$E$22&$F$12:$F$22,0)),"") ->  | E16: DDD | F16: PHE | G16: 7235 | I16: =IF(ISERROR(INDEX($G$12:$G$22,MATCH(A16&B16,$E$12:$E$22&$F$12:$F$22,0))),"",INDEX($G$12:$G$22,MATCH(A16&B16,$E$12:$E$22&$F$12:$F$22,0))) -> 
A17: MEMB | B17: LAA | C17: =IFERROR(INDEX($G$12:$G$22,MATCH(A17&B17,$E$12:$E$22&$F$12:$F$22,0)),"") -> 12716 | E17: MIN | F17: SEA | G17: 10674 | I17: =IF(ISERROR(INDEX($G$12:$G$22,MATCH(A17&B17,$E$12:$E$22&$F$12:$F$22,0))),"",INDEX($G$12:$G$22,MATCH(A17&B17,$E$12:$E$22&$F$12:$F$22,0))) -> 12716
A18: GEL | B18: NY | C18: =IFERROR(INDEX($G$12:$G$22,MATCH(A18&B18,$E$12:$E$22&$F$12:$F$22,0)),"") ->  | E18: XYZ | F18: SS | G18: 8211 | I18: =IF(ISERROR(INDEX($G$12:$G$22,MATCH(A18&B18,$E$12:$E$22&$F$12:$F$22,0))),"",INDEX($G$12:$G$22,MATCH(A18&B18,$E$12:$E$22&$F$12:$F$22,0))) -> 
A19: MEMB | B19: SS | C19: =IFERROR(INDEX($G$12:$G$22,MATCH(A19&B19,$E$12:$E$22&$F$12:$F$22,0)),"") ->  | E19: FRE | F19: SEA | G19: 12240 | I19: =IF(ISERROR(INDEX($G$12:$G$22,MATCH(A19&B19,$E$12:$E$22&$F$12:$F$22,0))),"",INDEX($G$12:$G$22,MATCH(A19&B19,$E$12:$E$22&$F$12:$F$22,0))) -> 
A20: ABC | B20: OLY | C20: =IFERROR(INDEX($G$12:$G$22,MATCH(A20&B20,$E$12:$E$22&$F$12:$F$22,0)),"") ->  | E20: GEL | F20: GIG | G20: 11916 | I20: =IF(ISERROR(INDEX($G$12:$G$22,MATCH(A20&B20,$E$12:$E$22&$F$12:$F$22,0))),"",INDEX($G$12:$G$22,MATCH(A20&B20,$E$12:$E$22&$F$12:$F$22,0))) -> 
A21: ACME | B21: TLL | C21: =IFERROR(INDEX($G$12:$G$22,MATCH(A21&B21,$E$12:$E$22&$F$12:$F$22,0)),"") ->  | E21: TTT | F21: SAE | G21: 17180 | I21: =IF(ISERROR(INDEX($G$12:$G$22,MATCH(A21&B21,$E$12:$E$22&$F$12:$F$22,0))),"",INDEX($G$12:$G$22,MATCH(A21&B21,$E$12:$E$22&$F$12:$F$22,0))) -> 
A22: XYZ | B22: FM | C22: =IFERROR(INDEX($G$12:$G$22,MATCH(A22&B22,$E$12:$E$22&$F$12:$F$22,0)),"") ->  | E22: MEMB | F22: LAA | G22: 12716 | I22: =IF(ISERROR(INDEX($G$12:$G$22,MATCH(A22&B22,$E$12:$E$22&$F$12:$F$22,0))),"",INDEX($G$12:$G$22,MATCH(A22&B22,$E$12:$E$22&$F$12:$F$22,0))) -> 
A23: ACME | B23: LAA | C23: =IFERROR(INDEX($G$12:$G$22,MATCH(A23&B23,$E$12:$E$22&$F$12:$F$22,0)),"") -> 4119 | I23: =IF(ISERROR(INDEX($G$12:$G$22,MATCH(A23&B23,$E$12:$E$22&$F$12:$F$22,0))),"",INDEX($G$12:$G$22,MATCH(A23&B23,$E$12:$E$22&$F$12:$F$22,0))) -> 4119
A24: GEL | B24: HHB | C24: =IFERROR(INDEX($G$12:$G$22,MATCH(A24&B24,$E$12:$E$22&$F$12:$F$22,0)),"") ->  | I24: =IF(ISERROR(INDEX($G$12:$G$22,MATCH(A24&B24,$E$12:$E$22&$F$12:$F$22,0))),"",INDEX($G$12:$G$22,MATCH(A24&B24,$E$12:$E$22&$F$12:$F$22,0))) -> 
A25: MEMB | B25: NY | C25: =IFERROR(INDEX($G$12:$G$22,MATCH(A25&B25,$E$12:$E$22&$F$12:$F$22,0)),"") ->  | I25: =IF(ISERROR(INDEX($G$12:$G$22,MATCH(A25&B25,$E$12:$E$22&$F$12:$F$22,0))),"",INDEX($G$12:$G$22,MATCH(A25&B25,$E$12:$E$22&$F$12:$F$22,0))) -> 
A26: ABC | B26: SAE | C26: =IFERROR(INDEX($G$12:$G$22,MATCH(A26&B26,$E$12:$E$22&$F$12:$F$22,0)),"") ->  | I26: =IF(ISERROR(INDEX($G$12:$G$22,MATCH(A26&B26,$E$12:$E$22&$F$12:$F$22,0))),"",INDEX($G$12:$G$22,MATCH(A26&B26,$E$12:$E$22&$F$12:$F$22,0))) -> 
A27: XYZ | B27: SS | C27: =IFERROR(INDEX($G$12:$G$22,MATCH(A27&B27,$E$12:$E$22&$F$12:$F$22,0)),"") -> 8211 | I27: =IF(ISERROR(INDEX($G$12:$G$22,MATCH(A27&B27,$E$12:$E$22&$F$12:$F$22,0))),"",INDEX($G$12:$G$22,MATCH(A27&B27,$E$12:$E$22&$F$12:$F$22,0))) -> 8211
A28: ACME | B28: TX | C28: =IFERROR(INDEX($G$12:$G$22,MATCH(A28&B28,$E$12:$E$22&$F$12:$F$22,0)),"") ->  | I28: =IF(ISERROR(INDEX($G$12:$G$22,MATCH(A28&B28,$E$12:$E$22&$F$12:$F$22,0))),"",INDEX($G$12:$G$22,MATCH(A28&B28,$E$12:$E$22&$F$12:$F$22,0))) -> 

Sheet (607) PO
A1: PO | B1: DATE | C1: PO = REC = INV all three? | H1: 2003 solution
A2: 25010 | B2: 2009-05-20 | E2: =VLOOKUP($A2,'REC(an)'!$B$2:$B$33,1,0) -> 25010 | F2: =VLOOKUP($A2,'INV(an)'!$B$2:$B$16,1,0) -> 25010 | H2: =IF(ISNA(AND(A2=VLOOKUP($A2,'REC(an)'!$B$2:$B$33,1,0),A2=VLOOKUP($A2,'INV(an)'!$B$2:$B$16,1,0))),"",AND(A2=VLOOKUP($A2,'REC(an)'!$B$2:$B$33,1,0),A2=VLOOKUP($A2,'INV(an)'!$B$2:$B$16,1,0))) -> TRUE
A3: 25011 | B3: 2009-05-21 | H3: =IF(ISNA(AND(A3=VLOOKUP($A3,'REC(an)'!$B$2:$B$33,1,0),A3=VLOOKUP($A3,'INV(an)'!$B$2:$B$16,1,0))),"",AND(A3=VLOOKUP($A3,'REC(an)'!$B$2:$B$33,1,0),A3=VLOOKUP($A3,'INV(an)'!$B$2:$B$16,1,0))) -> TRUE
A4: 25012 | B4: 2009-05-22 | H4: =IF(ISNA(AND(A4=VLOOKUP($A4,'REC(an)'!$B$2:$B$33,1,0),A4=VLOOKUP($A4,'INV(an)'!$B$2:$B$16,1,0))),"",AND(A4=VLOOKUP($A4,'REC(an)'!$B$2:$B$33,1,0),A4=VLOOKUP($A4,'INV(an)'!$B$2:$B$16,1,0))) -> TRUE
A5: 25013 | B5: 2009-05-23 | H5: =IF(ISNA(AND(A5=VLOOKUP($A5,'REC(an)'!$B$2:$B$33,1,0),A5=VLOOKUP($A5,'INV(an)'!$B$2:$B$16,1,0))),"",AND(A5=VLOOKUP($A5,'REC(an)'!$B$2:$B$33,1,0),A5=VLOOKUP($A5,'INV(an)'!$B$2:$B$16,1,0))) -> TRUE
A6: 25014 | B6: 2009-05-24 | H6: =IF(ISNA(AND(A6=VLOOKUP($A6,'REC(an)'!$B$2:$B$33,1,0),A6=VLOOKUP($A6,'INV(an)'!$B$2:$B$16,1,0))),"",AND(A6=VLOOKUP($A6,'REC(an)'!$B$2:$B$33,1,0),A6=VLOOKUP($A6,'INV(an)'!$B$2:$B$16,1,0))) -> TRUE
A7: 25015 | B7: 2009-05-25 | H7: =IF(ISNA(AND(A7=VLOOKUP($A7,'REC(an)'!$B$2:$B$33,1,0),A7=VLOOKUP($A7,'INV(an)'!$B$2:$B$16,1,0))),"",AND(A7=VLOOKUP($A7,'REC(an)'!$B$2:$B$33,1,0),A7=VLOOKUP($A7,'INV(an)'!$B$2:$B$16,1,0))) -> 
A8: 25016 | B8: 2009-05-26 | H8: =IF(ISNA(AND(A8=VLOOKUP($A8,'REC(an)'!$B$2:$B$33,1,0),A8=VLOOKUP($A8,'INV(an)'!$B$2:$B$16,1,0))),"",AND(A8=VLOOKUP($A8,'REC(an)'!$B$2:$B$33,1,0),A8=VLOOKUP($A8,'INV(an)'!$B$2:$B$16,1,0))) -> 
A9: 25017 | B9: 2009-05-27 | H9: =IF(ISNA(AND(A9=VLOOKUP($A9,'REC(an)'!$B$2:$B$33,1,0),A9=VLOOKUP($A9,'INV(an)'!$B$2:$B$16,1,0))),"",AND(A9=VLOOKUP($A9,'REC(an)'!$B$2:$B$33,1,0),A9=VLOOKUP($A9,'INV(an)'!$B$2:$B$16,1,0))) -> 
A10: 25018 | B10: 2009-05-28 | H10: =IF(ISNA(AND(A10=VLOOKUP($A10,'REC(an)'!$B$2:$B$33,1,0),A10=VLOOKUP($A10,'INV(an)'!$B$2:$B$16,1,0))),"",AND(A10=VLOOKUP($A10,'REC(an)'!$B$2:$B$33,1,0),A10=VLOOKUP($A10,'INV(an)'!$B$2:$B$16,1,0))) -> 
A11: 25019 | B11: 2009-05-29 | H11: =IF(ISNA(AND(A11=VLOOKUP($A11,'REC(an)'!$B$2:$B$33,1,0),A11=VLOOKUP($A11,'INV(an)'!$B$2:$B$16,1,0))),"",AND(A11=VLOOKUP($A11,'REC(an)'!$B$2:$B$33,1,0),A11=VLOOKUP($A11,'INV(an)'!$B$2:$B$16,1,0))) -> 
A12: 25020 | B12: 2009-05-30 | H12: =IF(ISNA(AND(A12=VLOOKUP($A12,'REC(an)'!$B$2:$B$33,1,0),A12=VLOOKUP($A12,'INV(an)'!$B$2:$B$16,1,0))),"",AND(A12=VLOOKUP($A12,'REC(an)'!$B$2:$B$33,1,0),A12=VLOOKUP($A12,'INV(an)'!$B$2:$B$16,1,0))) -> 
A13: 25021 | B13: 2009-05-31 | H13: =IF(ISNA(AND(A13=VLOOKUP($A13,'REC(an)'!$B$2:$B$33,1,0),A13=VLOOKUP($A13,'INV(an)'!$B$2:$B$16,1,0))),"",AND(A13=VLOOKUP($A13,'REC(an)'!$B$2:$B$33,1,0),A13=VLOOKUP($A13,'INV(an)'!$B$2:$B$16,1,0))) -> 
A14: 25022 | B14: 2009-06-01 | H14: =IF(ISNA(AND(A14=VLOOKUP($A14,'REC(an)'!$B$2:$B$33,1,0),A14=VLOOKUP($A14,'INV(an)'!$B$2:$B$16,1,0))),"",AND(A14=VLOOKUP($A14,'REC(an)'!$B$2:$B$33,1,0),A14=VLOOKUP($A14,'INV(an)'!$B$2:$B$16,1,0))) -> 
A15: 25023 | B15: 2009-06-02 | H15: =IF(ISNA(AND(A15=VLOOKUP($A15,'REC(an)'!$B$2:$B$33,1,0),A15=VLOOKUP($A15,'INV(an)'!$B$2:$B$16,1,0))),"",AND(A15=VLOOKUP($A15,'REC(an)'!$B$2:$B$33,1,0),A15=VLOOKUP($A15,'INV(an)'!$B$2:$B$16,1,0))) -> 
A16: 25024 | B16: 2009-06-03 | H16: =IF(ISNA(AND(A16=VLOOKUP($A16,'REC(an)'!$B$2:$B$33,1,0),A16=VLOOKUP($A16,'INV(an)'!$B$2:$B$16,1,0))),"",AND(A16=VLOOKUP($A16,'REC(an)'!$B$2:$B$33,1,0),A16=VLOOKUP($A16,'INV(an)'!$B$2:$B$16,1,0))) -> 
A17: 25025 | B17: 2009-06-04 | H17: =IF(ISNA(AND(A17=VLOOKUP($A17,'REC(an)'!$B$2:$B$33,1,0),A17=VLOOKUP($A17,'INV(an)'!$B$2:$B$16,1,0))),"",AND(A17=VLOOKUP($A17,'REC(an)'!$B$2:$B$33,1,0),A17=VLOOKUP($A17,'INV(an)'!$B$2:$B$16,1,0))) -> 
A18: 25026 | B18: 2009-06-05 | H18: =IF(ISNA(AND(A18=VLOOKUP($A18,'REC(an)'!$B$2:$B$33,1,0),A18=VLOOKUP($A18,'INV(an)'!$B$2:$B$16,1,0))),"",AND(A18=VLOOKUP($A18,'REC(an)'!$B$2:$B$33,1,0),A18=VLOOKUP($A18,'INV(an)'!$B$2:$B$16,1,0))) -> TRUE
A19: 25027 | B19: 2009-06-06 | H19: =IF(ISNA(AND(A19=VLOOKUP($A19,'REC(an)'!$B$2:$B$33,1,0),A19=VLOOKUP($A19,'INV(an)'!$B$2:$B$16,1,0))),"",AND(A19=VLOOKUP($A19,'REC(an)'!$B$2:$B$33,1,0),A19=VLOOKUP($A19,'INV(an)'!$B$2:$B$16,1,0))) -> TRUE
A20: 25028 | B20: 2009-06-07 | H20: =IF(ISNA(AND(A20=VLOOKUP($A20,'REC(an)'!$B$2:$B$33,1,0),A20=VLOOKUP($A20,'INV(an)'!$B$2:$B$16,1,0))),"",AND(A20=VLOOKUP($A20,'REC(an)'!$B$2:$B$33,1,0),A20=VLOOKUP($A20,'INV(an)'!$B$2:$B$16,1,0))) -> TRUE
A21: 25029 | B21: 2009-06-08 | H21: =IF(ISNA(AND(A21=VLOOKUP($A21,'REC(an)'!$B$2:$B$33,1,0),A21=VLOOKUP($A21,'INV(an)'!$B$2:$B$16,1,0))),"",AND(A21=VLOOKUP($A21,'REC(an)'!$B$2:$B$33,1,0),A21=VLOOKUP($A21,'INV(an)'!$B$2:$B$16,1,0))) -> 
A22: 25030 | B22: 2009-06-09 | H22: =IF(ISNA(AND(A22=VLOOKUP($A22,'REC(an)'!$B$2:$B$33,1,0),A22=VLOOKUP($A22,'INV(an)'!$B$2:$B$16,1,0))),"",AND(A22=VLOOKUP($A22,'REC(an)'!$B$2:$B$33,1,0),A22=VLOOKUP($A22,'INV(an)'!$B$2:$B$16,1,0))) -> TRUE
A23: 25031 | B23: 2009-06-10 | H23: =IF(ISNA(AND(A23=VLOOKUP($A23,'REC(an)'!$B$2:$B$33,1,0),A23=VLOOKUP($A23,'INV(an)'!$B$2:$B$16,1,0))),"",AND(A23=VLOOKUP($A23,'REC(an)'!$B$2:$B$33,1,0),A23=VLOOKUP($A23,'INV(an)'!$B$2:$B$16,1,0))) -> 
A24: 25032 | B24: 2009-06-11 | H24: =IF(ISNA(AND(A24=VLOOKUP($A24,'REC(an)'!$B$2:$B$33,1,0),A24=VLOOKUP($A24,'INV(an)'!$B$2:$B$16,1,0))),"",AND(A24=VLOOKUP($A24,'REC(an)'!$B$2:$B$33,1,0),A24=VLOOKUP($A24,'INV(an)'!$B$2:$B$16,1,0))) -> 
A25: 25033 | B25: 2009-06-12 | H25: =IF(ISNA(AND(A25=VLOOKUP($A25,'REC(an)'!$B$2:$B$33,1,0),A25=VLOOKUP($A25,'INV(an)'!$B$2:$B$16,1,0))),"",AND(A25=VLOOKUP($A25,'REC(an)'!$B$2:$B$33,1,0),A25=VLOOKUP($A25,'INV(an)'!$B$2:$B$16,1,0))) -> 
A26: 25034 | B26: 2009-06-13 | H26: =IF(ISNA(AND(A26=VLOOKUP($A26,'REC(an)'!$B$2:$B$33,1,0),A26=VLOOKUP($A26,'INV(an)'!$B$2:$B$16,1,0))),"",AND(A26=VLOOKUP($A26,'REC(an)'!$B$2:$B$33,1,0),A26=VLOOKUP($A26,'INV(an)'!$B$2:$B$16,1,0))) -> TRUE
A27: 25035 | B27: 2009-06-14 | H27: =IF(ISNA(AND(A27=VLOOKUP($A27,'REC(an)'!$B$2:$B$33,1,0),A27=VLOOKUP($A27,'INV(an)'!$B$2:$B$16,1,0))),"",AND(A27=VLOOKUP($A27,'REC(an)'!$B$2:$B$33,1,0),A27=VLOOKUP($A27,'INV(an)'!$B$2:$B$16,1,0))) -> 
A28: 25036 | B28: 2009-06-15 | H28: =IF(ISNA(AND(A28=VLOOKUP($A28,'REC(an)'!$B$2:$B$33,1,0),A28=VLOOKUP($A28,'INV(an)'!$B$2:$B$16,1,0))),"",AND(A28=VLOOKUP($A28,'REC(an)'!$B$2:$B$33,1,0),A28=VLOOKUP($A28,'INV(an)'!$B$2:$B$16,1,0))) -> 
A29: 25037 | B29: 2009-06-16 | H29: =IF(ISNA(AND(A29=VLOOKUP($A29,'REC(an)'!$B$2:$B$33,1,0),A29=VLOOKUP($A29,'INV(an)'!$B$2:$B$16,1,0))),"",AND(A29=VLOOKUP($A29,'REC(an)'!$B$2:$B$33,1,0),A29=VLOOKUP($A29,'INV(an)'!$B$2:$B$16,1,0))) -> 
A30: 25038 | B30: 2009-06-17 | H30: =IF(ISNA(AND(A30=VLOOKUP($A30,'REC(an)'!$B$2:$B$33,1,0),A30=VLOOKUP($A30,'INV(an)'!$B$2:$B$16,1,0))),"",AND(A30=VLOOKUP($A30,'REC(an)'!$B$2:$B$33,1,0),A30=VLOOKUP($A30,'INV(an)'!$B$2:$B$16,1,0))) -> TRUE
A31: 25039 | B31: 2009-06-18 | H31: =IF(ISNA(AND(A31=VLOOKUP($A31,'REC(an)'!$B$2:$B$33,1,0),A31=VLOOKUP($A31,'INV(an)'!$B$2:$B$16,1,0))),"",AND(A31=VLOOKUP($A31,'REC(an)'!$B$2:$B$33,1,0),A31=VLOOKUP($A31,'INV(an)'!$B$2:$B$16,1,0))) -> 
A32: 25040 | B32: 2009-06-19 | H32: =IF(ISNA(AND(A32=VLOOKUP($A32,'REC(an)'!$B$2:$B$33,1,0),A32=VLOOKUP($A32,'INV(an)'!$B$2:$B$16,1,0))),"",AND(A32=VLOOKUP($A32,'REC(an)'!$B$2:$B$33,1,0),A32=VLOOKUP($A32,'INV(an)'!$B$2:$B$16,1,0))) -> 
A33: 25041 | B33: 2009-06-20 | H33: =IF(ISNA(AND(A33=VLOOKUP($A33,'REC(an)'!$B$2:$B$33,1,0),A33=VLOOKUP($A33,'INV(an)'!$B$2:$B$16,1,0))),"",AND(A33=VLOOKUP($A33,'REC(an)'!$B$2:$B$33,1,0),A33=VLOOKUP($A33,'INV(an)'!$B$2:$B$16,1,0))) -> 
A34: 25042 | B34: 2009-06-21 | H34: =IF(ISNA(AND(A34=VLOOKUP($A34,'REC(an)'!$B$2:$B$33,1,0),A34=VLOOKUP($A34,'INV(an)'!$B$2:$B$16,1,0))),"",AND(A34=VLOOKUP($A34,'REC(an)'!$B$2:$B$33,1,0),A34=VLOOKUP($A34,'INV(an)'!$B$2:$B$16,1,0))) -> TRUE
A35: 25043 | B35: 2009-06-22 | H35: =IF(ISNA(AND(A35=VLOOKUP($A35,'REC(an)'!$B$2:$B$33,1,0),A35=VLOOKUP($A35,'INV(an)'!$B$2:$B$16,1,0))),"",AND(A35=VLOOKUP($A35,'REC(an)'!$B$2:$B$33,1,0),A35=VLOOKUP($A35,'INV(an)'!$B$2:$B$16,1,0))) -> 
A36: 25044 | B36: 2009-06-23 | H36: =IF(ISNA(AND(A36=VLOOKUP($A36,'REC(an)'!$B$2:$B$33,1,0),A36=VLOOKUP($A36,'INV(an)'!$B$2:$B$16,1,0))),"",AND(A36=VLOOKUP($A36,'REC(an)'!$B$2:$B$33,1,0),A36=VLOOKUP($A36,'INV(an)'!$B$2:$B$16,1,0))) -> 
A37: 25045 | B37: 2009-06-24 | H37: =IF(ISNA(AND(A37=VLOOKUP($A37,'REC(an)'!$B$2:$B$33,1,0),A37=VLOOKUP($A37,'INV(an)'!$B$2:$B$16,1,0))),"",AND(A37=VLOOKUP($A37,'REC(an)'!$B$2:$B$33,1,0),A37=VLOOKUP($A37,'INV(an)'!$B$2:$B$16,1,0))) -> 
A38: 25046 | B38: 2009-06-25 | H38: =IF(ISNA(AND(A38=VLOOKUP($A38,'REC(an)'!$B$2:$B$33,1,0),A38=VLOOKUP($A38,'INV(an)'!$B$2:$B$16,1,0))),"",AND(A38=VLOOKUP($A38,'REC(an)'!$B$2:$B$33,1,0),A38=VLOOKUP($A38,'INV(an)'!$B$2:$B$16,1,0))) -> TRUE
A39: 25047 | B39: 2009-06-26 | H39: =IF(ISNA(AND(A39=VLOOKUP($A39,'REC(an)'!$B$2:$B$33,1,0),A39=VLOOKUP($A39,'INV(an)'!$B$2:$B$16,1,0))),"",AND(A39=VLOOKUP($A39,'REC(an)'!$B$2:$B$33,1,0),A39=VLOOKUP($A39,'INV(an)'!$B$2:$B$16,1,0))) -> 
A40: 25048 | B40: 2009-06-27 | H40: =IF(ISNA(AND(A40=VLOOKUP($A40,'REC(an)'!$B$2:$B$33,1,0),A40=VLOOKUP($A40,'INV(an)'!$B$2:$B$16,1,0))),"",AND(A40=VLOOKUP($A40,'REC(an)'!$B$2:$B$33,1,0),A40=VLOOKUP($A40,'INV(an)'!$B$2:$B$16,1,0))) -> 
A41: 25049 | B41: 2009-06-28 | H41: =IF(ISNA(AND(A41=VLOOKUP($A41,'REC(an)'!$B$2:$B$33,1,0),A41=VLOOKUP($A41,'INV(an)'!$B$2:$B$16,1,0))),"",AND(A41=VLOOKUP($A41,'REC(an)'!$B$2:$B$33,1,0),A41=VLOOKUP($A41,'INV(an)'!$B$2:$B$16,1,0))) -> 
A42: 25050 | B42: 2009-06-29 | H42: =IF(ISNA(AND(A42=VLOOKUP($A42,'REC(an)'!$B$2:$B$33,1,0),A42=VLOOKUP($A42,'INV(an)'!$B$2:$B$16,1,0))),"",AND(A42=VLOOKUP($A42,'REC(an)'!$B$2:$B$33,1,0),A42=VLOOKUP($A42,'INV(an)'!$B$2:$B$16,1,0))) -> TRUE
A43: 25051 | B43: 2009-06-30 | H43: =IF(ISNA(AND(A43=VLOOKUP($A43,'REC(an)'!$B$2:$B$33,1,0),A43=VLOOKUP($A43,'INV(an)'!$B$2:$B$16,1,0))),"",AND(A43=VLOOKUP($A43,'REC(an)'!$B$2:$B$33,1,0),A43=VLOOKUP($A43,'INV(an)'!$B$2:$B$16,1,0))) -> 
A44: 25052 | B44: 2009-07-01 | H44: =IF(ISNA(AND(A44=VLOOKUP($A44,'REC(an)'!$B$2:$B$33,1,0),A44=VLOOKUP($A44,'INV(an)'!$B$2:$B$16,1,0))),"",AND(A44=VLOOKUP($A44,'REC(an)'!$B$2:$B$33,1,0),A44=VLOOKUP($A44,'INV(an)'!$B$2:$B$16,1,0))) -> 
A45: 25053 | B45: 2009-07-02 | H45: =IF(ISNA(AND(A45=VLOOKUP($A45,'REC(an)'!$B$2:$B$33,1,0),A45=VLOOKUP($A45,'INV(an)'!$B$2:$B$16,1,0))),"",AND(A45=VLOOKUP($A45,'REC(an)'!$B$2:$B$33,1,0),A45=VLOOKUP($A45,'INV(an)'!$B$2:$B$16,1,0))) -> 
A46: 25054 | B46: 2009-07-03 | H46: =IF(ISNA(AND(A46=VLOOKUP($A46,'REC(an)'!$B$2:$B$33,1,0),A46=VLOOKUP($A46,'INV(an)'!$B$2:$B$16,1,0))),"",AND(A46=VLOOKUP($A46,'REC(an)'!$B$2:$B$33,1,0),A46=VLOOKUP($A46,'INV(an)'!$B$2:$B$16,1,0))) -> 
A47: 25055 | B47: 2009-07-04 | H47: =IF(ISNA(AND(A47=VLOOKUP($A47,'REC(an)'!$B$2:$B$33,1,0),A47=VLOOKUP($A47,'INV(an)'!$B$2:$B$16,1,0))),"",AND(A47=VLOOKUP($A47,'REC(an)'!$B$2:$B$33,1,0),A47=VLOOKUP($A47,'INV(an)'!$B$2:$B$16,1,0))) -> 
A48: 25056 | B48: 2009-07-05 | H48: =IF(ISNA(AND(A48=VLOOKUP($A48,'REC(an)'!$B$2:$B$33,1,0),A48=VLOOKUP($A48,'INV(an)'!$B$2:$B$16,1,0))),"",AND(A48=VLOOKUP($A48,'REC(an)'!$B$2:$B$33,1,0),A48=VLOOKUP($A48,'INV(an)'!$B$2:$B$16,1,0))) -> 
A49: 25057 | B49: 2009-07-06 | H49: =IF(ISNA(AND(A49=VLOOKUP($A49,'REC(an)'!$B$2:$B$33,1,0),A49=VLOOKUP($A49,'INV(an)'!$B$2:$B$16,1,0))),"",AND(A49=VLOOKUP($A49,'REC(an)'!$B$2:$B$33,1,0),A49=VLOOKUP($A49,'INV(an)'!$B$2:$B$16,1,0))) -> 
A50: 25058 | B50: 2009-07-07 | H50: =IF(ISNA(AND(A50=VLOOKUP($A50,'REC(an)'!$B$2:$B$33,1,0),A50=VLOOKUP($A50,'INV(an)'!$B$2:$B$16,1,0))),"",AND(A50=VLOOKUP($A50,'REC(an)'!$B$2:$B$33,1,0),A50=VLOOKUP($A50,'INV(an)'!$B$2:$B$16,1,0))) -> 
A51: 25059 | B51: 2009-07-08 | H51: =IF(ISNA(AND(A51=VLOOKUP($A51,'REC(an)'!$B$2:$B$33,1,0),A51=VLOOKUP($A51,'INV(an)'!$B$2:$B$16,1,0))),"",AND(A51=VLOOKUP($A51,'REC(an)'!$B$2:$B$33,1,0),A51=VLOOKUP($A51,'INV(an)'!$B$2:$B$16,1,0))) -> 
A52: 25060 | B52: 2009-07-09 | H52: =IF(ISNA(AND(A52=VLOOKUP($A52,'REC(an)'!$B$2:$B$33,1,0),A52=VLOOKUP($A52,'INV(an)'!$B$2:$B$16,1,0))),"",AND(A52=VLOOKUP($A52,'REC(an)'!$B$2:$B$33,1,0),A52=VLOOKUP($A52,'INV(an)'!$B$2:$B$16,1,0))) -> 
A53: 25061 | B53: 2009-07-10 | H53: =IF(ISNA(AND(A53=VLOOKUP($A53,'REC(an)'!$B$2:$B$33,1,0),A53=VLOOKUP($A53,'INV(an)'!$B$2:$B$16,1,0))),"",AND(A53=VLOOKUP($A53,'REC(an)'!$B$2:$B$33,1,0),A53=VLOOKUP($A53,'INV(an)'!$B$2:$B$16,1,0))) -> 
A54: 25062 | B54: 2009-07-11 | H54: =IF(ISNA(AND(A54=VLOOKUP($A54,'REC(an)'!$B$2:$B$33,1,0),A54=VLOOKUP($A54,'INV(an)'!$B$2:$B$16,1,0))),"",AND(A54=VLOOKUP($A54,'REC(an)'!$B$2:$B$33,1,0),A54=VLOOKUP($A54,'INV(an)'!$B$2:$B$16,1,0))) -> 
A55: 25063 | B55: 2009-07-12 | H55: =IF(ISNA(AND(A55=VLOOKUP($A55,'REC(an)'!$B$2:$B$33,1,0),A55=VLOOKUP($A55,'INV(an)'!$B$2:$B$16,1,0))),"",AND(A55=VLOOKUP($A55,'REC(an)'!$B$2:$B$33,1,0),A55=VLOOKUP($A55,'INV(an)'!$B$2:$B$16,1,0))) -> 
A56: 25064 | B56: 2009-07-13 | H56: =IF(ISNA(AND(A56=VLOOKUP($A56,'REC(an)'!$B$2:$B$33,1,0),A56=VLOOKUP($A56,'INV(an)'!$B$2:$B$16,1,0))),"",AND(A56=VLOOKUP($A56,'REC(an)'!$B$2:$B$33,1,0),A56=VLOOKUP($A56,'INV(an)'!$B$2:$B$16,1,0))) -> 
A57: 25065 | B57: 2009-07-14 | H57: =IF(ISNA(AND(A57=VLOOKUP($A57,'REC(an)'!$B$2:$B$33,1,0),A57=VLOOKUP($A57,'INV(an)'!$B$2:$B$16,1,0))),"",AND(A57=VLOOKUP($A57,'REC(an)'!$B$2:$B$33,1,0),A57=VLOOKUP($A57,'INV(an)'!$B$2:$B$16,1,0))) -> 
A58: 25066 | B58: 2009-07-15 | H58: =IF(ISNA(AND(A58=VLOOKUP($A58,'REC(an)'!$B$2:$B$33,1,0),A58=VLOOKUP($A58,'INV(an)'!$B$2:$B$16,1,0))),"",AND(A58=VLOOKUP($A58,'REC(an)'!$B$2:$B$33,1,0),A58=VLOOKUP($A58,'INV(an)'!$B$2:$B$16,1,0))) -> 
A59: 25067 | B59: 2009-07-16 | H59: =IF(ISNA(AND(A59=VLOOKUP($A59,'REC(an)'!$B$2:$B$33,1,0),A59=VLOOKUP($A59,'INV(an)'!$B$2:$B$16,1,0))),"",AND(A59=VLOOKUP($A59,'REC(an)'!$B$2:$B$33,1,0),A59=VLOOKUP($A59,'INV(an)'!$B$2:$B$16,1,0))) -> 
A60: 25068 | B60: 2009-07-17 | H60: =IF(ISNA(AND(A60=VLOOKUP($A60,'REC(an)'!$B$2:$B$33,1,0),A60=VLOOKUP($A60,'INV(an)'!$B$2:$B$16,1,0))),"",AND(A60=VLOOKUP($A60,'REC(an)'!$B$2:$B$33,1,0),A60=VLOOKUP($A60,'INV(an)'!$B$2:$B$16,1,0))) -> 
A61: 25069 | B61: 2009-07-18 | H61: =IF(ISNA(AND(A61=VLOOKUP($A61,'REC(an)'!$B$2:$B$33,1,0),A61=VLOOKUP($A61,'INV(an)'!$B$2:$B$16,1,0))),"",AND(A61=VLOOKUP($A61,'REC(an)'!$B$2:$B$33,1,0),A61=VLOOKUP($A61,'INV(an)'!$B$2:$B$16,1,0))) -> 
A62: 25070 | B62: 2009-07-19 | H62: =IF(ISNA(AND(A62=VLOOKUP($A62,'REC(an)'!$B$2:$B$33,1,0),A62=VLOOKUP($A62,'INV(an)'!$B$2:$B$16,1,0))),"",AND(A62=VLOOKUP($A62,'REC(an)'!$B$2:$B$33,1,0),A62=VLOOKUP($A62,'INV(an)'!$B$2:$B$16,1,0))) -> 
A63: 25071 | B63: 2009-07-20 | H63: =IF(ISNA(AND(A63=VLOOKUP($A63,'REC(an)'!$B$2:$B$33,1,0),A63=VLOOKUP($A63,'INV(an)'!$B$2:$B$16,1,0))),"",AND(A63=VLOOKUP($A63,'REC(an)'!$B$2:$B$33,1,0),A63=VLOOKUP($A63,'INV(an)'!$B$2:$B$16,1,0))) -> 
A64: 25072 | B64: 2009-07-21 | H64: =IF(ISNA(AND(A64=VLOOKUP($A64,'REC(an)'!$B$2:$B$33,1,0),A64=VLOOKUP($A64,'INV(an)'!$B$2:$B$16,1,0))),"",AND(A64=VLOOKUP($A64,'REC(an)'!$B$2:$B$33,1,0),A64=VLOOKUP($A64,'INV(an)'!$B$2:$B$16,1,0))) -> 
A65: 25073 | B65: 2009-07-22 | H65: =IF(ISNA(AND(A65=VLOOKUP($A65,'REC(an)'!$B$2:$B$33,1,0),A65=VLOOKUP($A65,'INV(an)'!$B$2:$B$16,1,0))),"",AND(A65=VLOOKUP($A65,'REC(an)'!$B$2:$B$33,1,0),A65=VLOOKUP($A65,'INV(an)'!$B$2:$B$16,1,0))) -> 
A66: 25074 | B66: 2010-07-21 | H66: =IF(ISNA(AND(A66=VLOOKUP($A66,'REC(an)'!$B$2:$B$33,1,0),A66=VLOOKUP($A66,'INV(an)'!$B$2:$B$16,1,0))),"",AND(A66=VLOOKUP($A66,'REC(an)'!$B$2:$B$33,1,0),A66=VLOOKUP($A66,'INV(an)'!$B$2:$B$16,1,0))) -> TRUE

Sheet REC
A1: Rec# | B1: PO | C1: Date
A2: 22620 | B2: 25010 | C2: 2009-05-24
A3: 62480 | B3: 25012 | C3: 2010-05-25
A4: 71029 | B4: 25014 | C4: 2011-05-26
A5: 30367 | B5: 25011 | C5: 2012-05-26
A6: 82163 | B6: 25013 | C6: 2013-05-27
A7: 96494 | B7: 25027 | C7: 2014-05-28
A8: 21960 | B8: 25028 | C8: 2015-05-29
A9: 13496 | B9: 25024 | C9: 2016-05-29
A10: 47852 | B10: 25026 | C10: 2017-05-30
A11: 82319 | B11: 25028 | C11: 2018-05-31
A12: 85104 | B12: 25030 | C12: 2019-06-01
A13: 27775 | B13: 25032 | C13: 2020-06-01
A14: 47124 | B14: 25034 | C14: 2021-06-02
A15: 95387 | B15: 25036 | C15: 2022-06-03
A16: 91781 | B16: 25038 | C16: 2023-06-04
A17: 74449 | B17: 25040 | C17: 2024-06-04
A18: 39387 | B18: 25042 | C18: 2025-06-05
A19: 41153 | B19: 25044 | C19: 2026-06-06
A20: 52367 | B20: 25046 | C20: 2027-06-07
A21: 27576 | B21: 25048 | C21: 2028-06-07
A22: 24548 | B22: 25050 | C22: 2029-06-08
A23: 89055 | B23: 25052 | C23: 2030-06-09
A24: 61007 | B24: 25054 | C24: 2031-06-10
A25: 63399 | B25: 25056 | C25: 2032-06-10
A26: 47086 | B26: 25058 | C26: 2033-06-11
A27: 14940 | B27: 25060 | C27: 2034-06-12
A28: 80120 | B28: 25062 | C28: 2035-06-13
A29: 32820 | B29: 25064 | C29: 2036-06-13
A30: 81972 | B30: 25066 | C30: 2037-06-14
A31: 49301 | B31: 25068 | C31: 2038-06-15
A32: 42262 | B32: 25070 | C32: 2039-06-16
A33: 323 | B33: 25074 | C33: 2010-07-22

Sheet INV
A1: Inv# | B1: PO | C1: Date
A2: G33398 | B2: 25010 | C2: 2010-05-27
A3: Y96346 | B3: 25014 | C3: 2010-05-28
A4: G15281 | B4: 25011 | C4: 2010-05-28
A5: E66862 | B5: 25013 | C5: 2010-05-29
A6: N13722 | B6: 25026 | C6: 2010-05-30
A7: J84276 | B7: 25030 | C7: 2010-05-31
A8: M14834 | B8: 25034 | C8: 2010-06-01
A9: D58891 | B9: 25038 | C9: 2010-06-02
A10: L50179 | B10: 25042 | C10: 2010-06-03
A11: Z79465 | B11: 25046 | C11: 2010-06-04
A12: J78185 | B12: 25050 | C12: 2010-06-05
A13: P87275 | B13: 25027 | C13: 2010-06-06
A14: J84477 | B14: 25028 | C14: 2010-06-07
A15: rtdtrdrt | B15: 25012 | C15: 2010-06-08
A16: rtrtrtdd | B16: 25074 | C16: 2010-07-22

Sheet (607) PO (an)
A1: PO | B1: DATE | C1: PO = REC = INV all three? | H1: 2003 solution
A2: 25010 | B2: 2009-05-20 | C2: =IFERROR(AND(A2=VLOOKUP($A2,'REC(an)'!$B$2:$B$33,1,0),A2=VLOOKUP($A2,'INV(an)'!$B$2:$B$16,1,0)),"") -> TRUE | E2: =VLOOKUP($A2,'REC(an)'!$B$2:$B$33,1,0) -> 25010 | F2: =VLOOKUP($A2,'INV(an)'!$B$2:$B$16,1,0) -> 25010 | H2: =IF(ISNA(AND(A2=VLOOKUP($A2,'REC(an)'!$B$2:$B$33,1,0),A2=VLOOKUP($A2,'INV(an)'!$B$2:$B$16,1,0))),"",AND(A2=VLOOKUP($A2,'REC(an)'!$B$2:$B$33,1,0),A2=VLOOKUP($A2,'INV(an)'!$B$2:$B$16,1,0))) -> TRUE
A3: 25011 | B3: 2009-05-21 | C3: =IFERROR(AND(A3=VLOOKUP($A3,'REC(an)'!$B$2:$B$33,1,0),A3=VLOOKUP($A3,'INV(an)'!$B$2:$B$16,1,0)),"") -> TRUE | H3: =IF(ISNA(AND(A3=VLOOKUP($A3,'REC(an)'!$B$2:$B$33,1,0),A3=VLOOKUP($A3,'INV(an)'!$B$2:$B$16,1,0))),"",AND(A3=VLOOKUP($A3,'REC(an)'!$B$2:$B$33,1,0),A3=VLOOKUP($A3,'INV(an)'!$B$2:$B$16,1,0))) -> TRUE
A4: 25012 | B4: 2009-05-22 | C4: =IFERROR(AND(A4=VLOOKUP($A4,'REC(an)'!$B$2:$B$33,1,0),A4=VLOOKUP($A4,'INV(an)'!$B$2:$B$16,1,0)),"") -> TRUE | H4: =IF(ISNA(AND(A4=VLOOKUP($A4,'REC(an)'!$B$2:$B$33,1,0),A4=VLOOKUP($A4,'INV(an)'!$B$2:$B$16,1,0))),"",AND(A4=VLOOKUP($A4,'REC(an)'!$B$2:$B$33,1,0),A4=VLOOKUP($A4,'INV(an)'!$B$2:$B$16,1,0))) -> TRUE
A5: 25013 | B5: 2009-05-23 | C5: =IFERROR(AND(A5=VLOOKUP($A5,'REC(an)'!$B$2:$B$33,1,0),A5=VLOOKUP($A5,'INV(an)'!$B$2:$B$16,1,0)),"") -> TRUE | H5: =IF(ISNA(AND(A5=VLOOKUP($A5,'REC(an)'!$B$2:$B$33,1,0),A5=VLOOKUP($A5,'INV(an)'!$B$2:$B$16,1,0))),"",AND(A5=VLOOKUP($A5,'REC(an)'!$B$2:$B$33,1,0),A5=VLOOKUP($A5,'INV(an)'!$B$2:$B$16,1,0))) -> TRUE
A6: 25014 | B6: 2009-05-24 | C6: =IFERROR(AND(A6=VLOOKUP($A6,'REC(an)'!$B$2:$B$33,1,0),A6=VLOOKUP($A6,'INV(an)'!$B$2:$B$16,1,0)),"") -> TRUE | H6: =IF(ISNA(AND(A6=VLOOKUP($A6,'REC(an)'!$B$2:$B$33,1,0),A6=VLOOKUP($A6,'INV(an)'!$B$2:$B$16,1,0))),"",AND(A6=VLOOKUP($A6,'REC(an)'!$B$2:$B$33,1,0),A6=VLOOKUP($A6,'INV(an)'!$B$2:$B$16,1,0))) -> TRUE
A7: 25015 | B7: 2009-05-25 | C7: =IFERROR(AND(A7=VLOOKUP($A7,'REC(an)'!$B$2:$B$33,1,0),A7=VLOOKUP($A7,'INV(an)'!$B$2:$B$16,1,0)),"") ->  | H7: =IF(ISNA(AND(A7=VLOOKUP($A7,'REC(an)'!$B$2:$B$33,1,0),A7=VLOOKUP($A7,'INV(an)'!$B$2:$B$16,1,0))),"",AND(A7=VLOOKUP($A7,'REC(an)'!$B$2:$B$33,1,0),A7=VLOOKUP($A7,'INV(an)'!$B$2:$B$16,1,0))) -> 
A8: 25016 | B8: 2009-05-26 | C8: =IFERROR(AND(A8=VLOOKUP($A8,'REC(an)'!$B$2:$B$33,1,0),A8=VLOOKUP($A8,'INV(an)'!$B$2:$B$16,1,0)),"") ->  | H8: =IF(ISNA(AND(A8=VLOOKUP($A8,'REC(an)'!$B$2:$B$33,1,0),A8=VLOOKUP($A8,'INV(an)'!$B$2:$B$16,1,0))),"",AND(A8=VLOOKUP($A8,'REC(an)'!$B$2:$B$33,1,0),A8=VLOOKUP($A8,'INV(an)'!$B$2:$B$16,1,0))) -> 
A9: 25017 | B9: 2009-05-27 | C9: =IFERROR(AND(A9=VLOOKUP($A9,'REC(an)'!$B$2:$B$33,1,0),A9=VLOOKUP($A9,'INV(an)'!$B$2:$B$16,1,0)),"") ->  | H9: =IF(ISNA(AND(A9=VLOOKUP($A9,'REC(an)'!$B$2:$B$33,1,0),A9=VLOOKUP($A9,'INV(an)'!$B$2:$B$16,1,0))),"",AND(A9=VLOOKUP($A9,'REC(an)'!$B$2:$B$33,1,0),A9=VLOOKUP($A9,'INV(an)'!$B$2:$B$16,1,0))) -> 
A10: 25018 | B10: 2009-05-28 | C10: =IFERROR(AND(A10=VLOOKUP($A10,'REC(an)'!$B$2:$B$33,1,0),A10=VLOOKUP($A10,'INV(an)'!$B$2:$B$16,1,0)),"") ->  | H10: =IF(ISNA(AND(A10=VLOOKUP($A10,'REC(an)'!$B$2:$B$33,1,0),A10=VLOOKUP($A10,'INV(an)'!$B$2:$B$16,1,0))),"",AND(A10=VLOOKUP($A10,'REC(an)'!$B$2:$B$33,1,0),A10=VLOOKUP($A10,'INV(an)'!$B$2:$B$16,1,0))) -> 
A11: 25019 | B11: 2009-05-29 | C11: =IFERROR(AND(A11=VLOOKUP($A11,'REC(an)'!$B$2:$B$33,1,0),A11=VLOOKUP($A11,'INV(an)'!$B$2:$B$16,1,0)),"") ->  | H11: =IF(ISNA(AND(A11=VLOOKUP($A11,'REC(an)'!$B$2:$B$33,1,0),A11=VLOOKUP($A11,'INV(an)'!$B$2:$B$16,1,0))),"",AND(A11=VLOOKUP($A11,'REC(an)'!$B$2:$B$33,1,0),A11=VLOOKUP($A11,'INV(an)'!$B$2:$B$16,1,0))) -> 
A12: 25020 | B12: 2009-05-30 | C12: =IFERROR(AND(A12=VLOOKUP($A12,'REC(an)'!$B$2:$B$33,1,0),A12=VLOOKUP($A12,'INV(an)'!$B$2:$B$16,1,0)),"") ->  | H12: =IF(ISNA(AND(A12=VLOOKUP($A12,'REC(an)'!$B$2:$B$33,1,0),A12=VLOOKUP($A12,'INV(an)'!$B$2:$B$16,1,0))),"",AND(A12=VLOOKUP($A12,'REC(an)'!$B$2:$B$33,1,0),A12=VLOOKUP($A12,'INV(an)'!$B$2:$B$16,1,0))) -> 
A13: 25021 | B13: 2009-05-31 | C13: =IFERROR(AND(A13=VLOOKUP($A13,'REC(an)'!$B$2:$B$33,1,0),A13=VLOOKUP($A13,'INV(an)'!$B$2:$B$16,1,0)),"") ->  | H13: =IF(ISNA(AND(A13=VLOOKUP($A13,'REC(an)'!$B$2:$B$33,1,0),A13=VLOOKUP($A13,'INV(an)'!$B$2:$B$16,1,0))),"",AND(A13=VLOOKUP($A13,'REC(an)'!$B$2:$B$33,1,0),A13=VLOOKUP($A13,'INV(an)'!$B$2:$B$16,1,0))) -> 
A14: 25022 | B14: 2009-06-01 | C14: =IFERROR(AND(A14=VLOOKUP($A14,'REC(an)'!$B$2:$B$33,1,0),A14=VLOOKUP($A14,'INV(an)'!$B$2:$B$16,1,0)),"") ->  | H14: =IF(ISNA(AND(A14=VLOOKUP($A14,'REC(an)'!$B$2:$B$33,1,0),A14=VLOOKUP($A14,'INV(an)'!$B$2:$B$16,1,0))),"",AND(A14=VLOOKUP($A14,'REC(an)'!$B$2:$B$33,1,0),A14=VLOOKUP($A14,'INV(an)'!$B$2:$B$16,1,0))) -> 
A15: 25023 | B15: 2009-06-02 | C15: =IFERROR(AND(A15=VLOOKUP($A15,'REC(an)'!$B$2:$B$33,1,0),A15=VLOOKUP($A15,'INV(an)'!$B$2:$B$16,1,0)),"") ->  | H15: =IF(ISNA(AND(A15=VLOOKUP($A15,'REC(an)'!$B$2:$B$33,1,0),A15=VLOOKUP($A15,'INV(an)'!$B$2:$B$16,1,0))),"",AND(A15=VLOOKUP($A15,'REC(an)'!$B$2:$B$33,1,0),A15=VLOOKUP($A15,'INV(an)'!$B$2:$B$16,1,0))) -> 
A16: 25024 | B16: 2009-06-03 | C16: =IFERROR(AND(A16=VLOOKUP($A16,'REC(an)'!$B$2:$B$33,1,0),A16=VLOOKUP($A16,'INV(an)'!$B$2:$B$16,1,0)),"") ->  | H16: =IF(ISNA(AND(A16=VLOOKUP($A16,'REC(an)'!$B$2:$B$33,1,0),A16=VLOOKUP($A16,'INV(an)'!$B$2:$B$16,1,0))),"",AND(A16=VLOOKUP($A16,'REC(an)'!$B$2:$B$33,1,0),A16=VLOOKUP($A16,'INV(an)'!$B$2:$B$16,1,0))) -> 
A17: 25025 | B17: 2009-06-04 | C17: =IFERROR(AND(A17=VLOOKUP($A17,'REC(an)'!$B$2:$B$33,1,0),A17=VLOOKUP($A17,'INV(an)'!$B$2:$B$16,1,0)),"") ->  | H17: =IF(ISNA(AND(A17=VLOOKUP($A17,'REC(an)'!$B$2:$B$33,1,0),A17=VLOOKUP($A17,'INV(an)'!$B$2:$B$16,1,0))),"",AND(A17=VLOOKUP($A17,'REC(an)'!$B$2:$B$33,1,0),A17=VLOOKUP($A17,'INV(an)'!$B$2:$B$16,1,0))) -> 
A18: 25026 | B18: 2009-06-05 | C18: =IFERROR(AND(A18=VLOOKUP($A18,'REC(an)'!$B$2:$B$33,1,0),A18=VLOOKUP($A18,'INV(an)'!$B$2:$B$16,1,0)),"") -> TRUE | H18: =IF(ISNA(AND(A18=VLOOKUP($A18,'REC(an)'!$B$2:$B$33,1,0),A18=VLOOKUP($A18,'INV(an)'!$B$2:$B$16,1,0))),"",AND(A18=VLOOKUP($A18,'REC(an)'!$B$2:$B$33,1,0),A18=VLOOKUP($A18,'INV(an)'!$B$2:$B$16,1,0))) -> TRUE
A19: 25027 | B19: 2009-06-06 | C19: =IFERROR(AND(A19=VLOOKUP($A19,'REC(an)'!$B$2:$B$33,1,0),A19=VLOOKUP($A19,'INV(an)'!$B$2:$B$16,1,0)),"") -> TRUE | H19: =IF(ISNA(AND(A19=VLOOKUP($A19,'REC(an)'!$B$2:$B$33,1,0),A19=VLOOKUP($A19,'INV(an)'!$B$2:$B$16,1,0))),"",AND(A19=VLOOKUP($A19,'REC(an)'!$B$2:$B$33,1,0),A19=VLOOKUP($A19,'INV(an)'!$B$2:$B$16,1,0))) -> TRUE
A20: 25028 | B20: 2009-06-07 | C20: =IFERROR(AND(A20=VLOOKUP($A20,'REC(an)'!$B$2:$B$33,1,0),A20=VLOOKUP($A20,'INV(an)'!$B$2:$B$16,1,0)),"") -> TRUE | H20: =IF(ISNA(AND(A20=VLOOKUP($A20,'REC(an)'!$B$2:$B$33,1,0),A20=VLOOKUP($A20,'INV(an)'!$B$2:$B$16,1,0))),"",AND(A20=VLOOKUP($A20,'REC(an)'!$B$2:$B$33,1,0),A20=VLOOKUP($A20,'INV(an)'!$B$2:$B$16,1,0))) -> TRUE
A21: 25029 | B21: 2009-06-08 | C21: =IFERROR(AND(A21=VLOOKUP($A21,'REC(an)'!$B$2:$B$33,1,0),A21=VLOOKUP($A21,'INV(an)'!$B$2:$B$16,1,0)),"") ->  | H21: =IF(ISNA(AND(A21=VLOOKUP($A21,'REC(an)'!$B$2:$B$33,1,0),A21=VLOOKUP($A21,'INV(an)'!$B$2:$B$16,1,0))),"",AND(A21=VLOOKUP($A21,'REC(an)'!$B$2:$B$33,1,0),A21=VLOOKUP($A21,'INV(an)'!$B$2:$B$16,1,0))) -> 
A22: 25030 | B22: 2009-06-09 | C22: =IFERROR(AND(A22=VLOOKUP($A22,'REC(an)'!$B$2:$B$33,1,0),A22=VLOOKUP($A22,'INV(an)'!$B$2:$B$16,1,0)),"") -> TRUE | H22: =IF(ISNA(AND(A22=VLOOKUP($A22,'REC(an)'!$B$2:$B$33,1,0),A22=VLOOKUP($A22,'INV(an)'!$B$2:$B$16,1,0))),"",AND(A22=VLOOKUP($A22,'REC(an)'!$B$2:$B$33,1,0),A22=VLOOKUP($A22,'INV(an)'!$B$2:$B$16,1,0))) -> TRUE
A23: 25031 | B23: 2009-06-10 | C23: =IFERROR(AND(A23=VLOOKUP($A23,'REC(an)'!$B$2:$B$33,1,0),A23=VLOOKUP($A23,'INV(an)'!$B$2:$B$16,1,0)),"") ->  | H23: =IF(ISNA(AND(A23=VLOOKUP($A23,'REC(an)'!$B$2:$B$33,1,0),A23=VLOOKUP($A23,'INV(an)'!$B$2:$B$16,1,0))),"",AND(A23=VLOOKUP($A23,'REC(an)'!$B$2:$B$33,1,0),A23=VLOOKUP($A23,'INV(an)'!$B$2:$B$16,1,0))) -> 
A24: 25032 | B24: 2009-06-11 | C24: =IFERROR(AND(A24=VLOOKUP($A24,'REC(an)'!$B$2:$B$33,1,0),A24=VLOOKUP($A24,'INV(an)'!$B$2:$B$16,1,0)),"") ->  | H24: =IF(ISNA(AND(A24=VLOOKUP($A24,'REC(an)'!$B$2:$B$33,1,0),A24=VLOOKUP($A24,'INV(an)'!$B$2:$B$16,1,0))),"",AND(A24=VLOOKUP($A24,'REC(an)'!$B$2:$B$33,1,0),A24=VLOOKUP($A24,'INV(an)'!$B$2:$B$16,1,0))) -> 
A25: 25033 | B25: 2009-06-12 | C25: =IFERROR(AND(A25=VLOOKUP($A25,'REC(an)'!$B$2:$B$33,1,0),A25=VLOOKUP($A25,'INV(an)'!$B$2:$B$16,1,0)),"") ->  | H25: =IF(ISNA(AND(A25=VLOOKUP($A25,'REC(an)'!$B$2:$B$33,1,0),A25=VLOOKUP($A25,'INV(an)'!$B$2:$B$16,1,0))),"",AND(A25=VLOOKUP($A25,'REC(an)'!$B$2:$B$33,1,0),A25=VLOOKUP($A25,'INV(an)'!$B$2:$B$16,1,0))) -> 
A26: 25034 | B26: 2009-06-13 | C26: =IFERROR(AND(A26=VLOOKUP($A26,'REC(an)'!$B$2:$B$33,1,0),A26=VLOOKUP($A26,'INV(an)'!$B$2:$B$16,1,0)),"") -> TRUE | H26: =IF(ISNA(AND(A26=VLOOKUP($A26,'REC(an)'!$B$2:$B$33,1,0),A26=VLOOKUP($A26,'INV(an)'!$B$2:$B$16,1,0))),"",AND(A26=VLOOKUP($A26,'REC(an)'!$B$2:$B$33,1,0),A26=VLOOKUP($A26,'INV(an)'!$B$2:$B$16,1,0))) -> TRUE
A27: 25035 | B27: 2009-06-14 | C27: =IFERROR(AND(A27=VLOOKUP($A27,'REC(an)'!$B$2:$B$33,1,0),A27=VLOOKUP($A27,'INV(an)'!$B$2:$B$16,1,0)),"") ->  | H27: =IF(ISNA(AND(A27=VLOOKUP($A27,'REC(an)'!$B$2:$B$33,1,0),A27=VLOOKUP($A27,'INV(an)'!$B$2:$B$16,1,0))),"",AND(A27=VLOOKUP($A27,'REC(an)'!$B$2:$B$33,1,0),A27=VLOOKUP($A27,'INV(an)'!$B$2:$B$16,1,0))) -> 
A28: 25036 | B28: 2009-06-15 | C28: =IFERROR(AND(A28=VLOOKUP($A28,'REC(an)'!$B$2:$B$33,1,0),A28=VLOOKUP($A28,'INV(an)'!$B$2:$B$16,1,0)),"") ->  | H28: =IF(ISNA(AND(A28=VLOOKUP($A28,'REC(an)'!$B$2:$B$33,1,0),A28=VLOOKUP($A28,'INV(an)'!$B$2:$B$16,1,0))),"",AND(A28=VLOOKUP($A28,'REC(an)'!$B$2:$B$33,1,0),A28=VLOOKUP($A28,'INV(an)'!$B$2:$B$16,1,0))) -> 
A29: 25037 | B29: 2009-06-16 | C29: =IFERROR(AND(A29=VLOOKUP($A29,'REC(an)'!$B$2:$B$33,1,0),A29=VLOOKUP($A29,'INV(an)'!$B$2:$B$16,1,0)),"") ->  | H29: =IF(ISNA(AND(A29=VLOOKUP($A29,'REC(an)'!$B$2:$B$33,1,0),A29=VLOOKUP($A29,'INV(an)'!$B$2:$B$16,1,0))),"",AND(A29=VLOOKUP($A29,'REC(an)'!$B$2:$B$33,1,0),A29=VLOOKUP($A29,'INV(an)'!$B$2:$B$16,1,0))) -> 
A30: 25038 | B30: 2009-06-17 | C30: =IFERROR(AND(A30=VLOOKUP($A30,'REC(an)'!$B$2:$B$33,1,0),A30=VLOOKUP($A30,'INV(an)'!$B$2:$B$16,1,0)),"") -> TRUE | H30: =IF(ISNA(AND(A30=VLOOKUP($A30,'REC(an)'!$B$2:$B$33,1,0),A30=VLOOKUP($A30,'INV(an)'!$B$2:$B$16,1,0))),"",AND(A30=VLOOKUP($A30,'REC(an)'!$B$2:$B$33,1,0),A30=VLOOKUP($A30,'INV(an)'!$B$2:$B$16,1,0))) -> TRUE
A31: 25039 | B31: 2009-06-18 | C31: =IFERROR(AND(A31=VLOOKUP($A31,'REC(an)'!$B$2:$B$33,1,0),A31=VLOOKUP($A31,'INV(an)'!$B$2:$B$16,1,0)),"") ->  | H31: =IF(ISNA(AND(A31=VLOOKUP($A31,'REC(an)'!$B$2:$B$33,1,0),A31=VLOOKUP($A31,'INV(an)'!$B$2:$B$16,1,0))),"",AND(A31=VLOOKUP($A31,'REC(an)'!$B$2:$B$33,1,0),A31=VLOOKUP($A31,'INV(an)'!$B$2:$B$16,1,0))) -> 
A32: 25040 | B32: 2009-06-19 | C32: =IFERROR(AND(A32=VLOOKUP($A32,'REC(an)'!$B$2:$B$33,1,0),A32=VLOOKUP($A32,'INV(an)'!$B$2:$B$16,1,0)),"") ->  | H32: =IF(ISNA(AND(A32=VLOOKUP($A32,'REC(an)'!$B$2:$B$33,1,0),A32=VLOOKUP($A32,'INV(an)'!$B$2:$B$16,1,0))),"",AND(A32=VLOOKUP($A32,'REC(an)'!$B$2:$B$33,1,0),A32=VLOOKUP($A32,'INV(an)'!$B$2:$B$16,1,0))) -> 
A33: 25041 | B33: 2009-06-20 | C33: =IFERROR(AND(A33=VLOOKUP($A33,'REC(an)'!$B$2:$B$33,1,0),A33=VLOOKUP($A33,'INV(an)'!$B$2:$B$16,1,0)),"") ->  | H33: =IF(ISNA(AND(A33=VLOOKUP($A33,'REC(an)'!$B$2:$B$33,1,0),A33=VLOOKUP($A33,'INV(an)'!$B$2:$B$16,1,0))),"",AND(A33=VLOOKUP($A33,'REC(an)'!$B$2:$B$33,1,0),A33=VLOOKUP($A33,'INV(an)'!$B$2:$B$16,1,0))) -> 
A34: 25042 | B34: 2009-06-21 | C34: =IFERROR(AND(A34=VLOOKUP($A34,'REC(an)'!$B$2:$B$33,1,0),A34=VLOOKUP($A34,'INV(an)'!$B$2:$B$16,1,0)),"") -> TRUE | H34: =IF(ISNA(AND(A34=VLOOKUP($A34,'REC(an)'!$B$2:$B$33,1,0),A34=VLOOKUP($A34,'INV(an)'!$B$2:$B$16,1,0))),"",AND(A34=VLOOKUP($A34,'REC(an)'!$B$2:$B$33,1,0),A34=VLOOKUP($A34,'INV(an)'!$B$2:$B$16,1,0))) -> TRUE
A35: 25043 | B35: 2009-06-22 | C35: =IFERROR(AND(A35=VLOOKUP($A35,'REC(an)'!$B$2:$B$33,1,0),A35=VLOOKUP($A35,'INV(an)'!$B$2:$B$16,1,0)),"") ->  | H35: =IF(ISNA(AND(A35=VLOOKUP($A35,'REC(an)'!$B$2:$B$33,1,0),A35=VLOOKUP($A35,'INV(an)'!$B$2:$B$16,1,0))),"",AND(A35=VLOOKUP($A35,'REC(an)'!$B$2:$B$33,1,0),A35=VLOOKUP($A35,'INV(an)'!$B$2:$B$16,1,0))) -> 
A36: 25044 | B36: 2009-06-23 | C36: =IFERROR(AND(A36=VLOOKUP($A36,'REC(an)'!$B$2:$B$33,1,0),A36=VLOOKUP($A36,'INV(an)'!$B$2:$B$16,1,0)),"") ->  | H36: =IF(ISNA(AND(A36=VLOOKUP($A36,'REC(an)'!$B$2:$B$33,1,0),A36=VLOOKUP($A36,'INV(an)'!$B$2:$B$16,1,0))),"",AND(A36=VLOOKUP($A36,'REC(an)'!$B$2:$B$33,1,0),A36=VLOOKUP($A36,'INV(an)'!$B$2:$B$16,1,0))) -> 
A37: 25045 | B37: 2009-06-24 | C37: =IFERROR(AND(A37=VLOOKUP($A37,'REC(an)'!$B$2:$B$33,1,0),A37=VLOOKUP($A37,'INV(an)'!$B$2:$B$16,1,0)),"") ->  | H37: =IF(ISNA(AND(A37=VLOOKUP($A37,'REC(an)'!$B$2:$B$33,1,0),A37=VLOOKUP($A37,'INV(an)'!$B$2:$B$16,1,0))),"",AND(A37=VLOOKUP($A37,'REC(an)'!$B$2:$B$33,1,0),A37=VLOOKUP($A37,'INV(an)'!$B$2:$B$16,1,0))) -> 
A38: 25046 | B38: 2009-06-25 | C38: =IFERROR(AND(A38=VLOOKUP($A38,'REC(an)'!$B$2:$B$33,1,0),A38=VLOOKUP($A38,'INV(an)'!$B$2:$B$16,1,0)),"") -> TRUE | H38: =IF(ISNA(AND(A38=VLOOKUP($A38,'REC(an)'!$B$2:$B$33,1,0),A38=VLOOKUP($A38,'INV(an)'!$B$2:$B$16,1,0))),"",AND(A38=VLOOKUP($A38,'REC(an)'!$B$2:$B$33,1,0),A38=VLOOKUP($A38,'INV(an)'!$B$2:$B$16,1,0))) -> TRUE
A39: 25047 | B39: 2009-06-26 | C39: =IFERROR(AND(A39=VLOOKUP($A39,'REC(an)'!$B$2:$B$33,1,0),A39=VLOOKUP($A39,'INV(an)'!$B$2:$B$16,1,0)),"") ->  | H39: =IF(ISNA(AND(A39=VLOOKUP($A39,'REC(an)'!$B$2:$B$33,1,0),A39=VLOOKUP($A39,'INV(an)'!$B$2:$B$16,1,0))),"",AND(A39=VLOOKUP($A39,'REC(an)'!$B$2:$B$33,1,0),A39=VLOOKUP($A39,'INV(an)'!$B$2:$B$16,1,0))) -> 
A40: 25048 | B40: 2009-06-27 | C40: =IFERROR(AND(A40=VLOOKUP($A40,'REC(an)'!$B$2:$B$33,1,0),A40=VLOOKUP($A40,'INV(an)'!$B$2:$B$16,1,0)),"") ->  | H40: =IF(ISNA(AND(A40=VLOOKUP($A40,'REC(an)'!$B$2:$B$33,1,0),A40=VLOOKUP($A40,'INV(an)'!$B$2:$B$16,1,0))),"",AND(A40=VLOOKUP($A40,'REC(an)'!$B$2:$B$33,1,0),A40=VLOOKUP($A40,'INV(an)'!$B$2:$B$16,1,0))) -> 
A41: 25049 | B41: 2009-06-28 | C41: =IFERROR(AND(A41=VLOOKUP($A41,'REC(an)'!$B$2:$B$33,1,0),A41=VLOOKUP($A41,'INV(an)'!$B$2:$B$16,1,0)),"") ->  | H41: =IF(ISNA(AND(A41=VLOOKUP($A41,'REC(an)'!$B$2:$B$33,1,0),A41=VLOOKUP($A41,'INV(an)'!$B$2:$B$16,1,0))),"",AND(A41=VLOOKUP($A41,'REC(an)'!$B$2:$B$33,1,0),A41=VLOOKUP($A41,'INV(an)'!$B$2:$B$16,1,0))) -> 
A42: 25050 | B42: 2009-06-29 | C42: =IFERROR(AND(A42=VLOOKUP($A42,'REC(an)'!$B$2:$B$33,1,0),A42=VLOOKUP($A42,'INV(an)'!$B$2:$B$16,1,0)),"") -> TRUE | H42: =IF(ISNA(AND(A42=VLOOKUP($A42,'REC(an)'!$B$2:$B$33,1,0),A42=VLOOKUP($A42,'INV(an)'!$B$2:$B$16,1,0))),"",AND(A42=VLOOKUP($A42,'REC(an)'!$B$2:$B$33,1,0),A42=VLOOKUP($A42,'INV(an)'!$B$2:$B$16,1,0))) -> TRUE
A43: 25051 | B43: 2009-06-30 | C43: =IFERROR(AND(A43=VLOOKUP($A43,'REC(an)'!$B$2:$B$33,1,0),A43=VLOOKUP($A43,'INV(an)'!$B$2:$B$16,1,0)),"") ->  | H43: =IF(ISNA(AND(A43=VLOOKUP($A43,'REC(an)'!$B$2:$B$33,1,0),A43=VLOOKUP($A43,'INV(an)'!$B$2:$B$16,1,0))),"",AND(A43=VLOOKUP($A43,'REC(an)'!$B$2:$B$33,1,0),A43=VLOOKUP($A43,'INV(an)'!$B$2:$B$16,1,0))) -> 
A44: 25052 | B44: 2009-07-01 | C44: =IFERROR(AND(A44=VLOOKUP($A44,'REC(an)'!$B$2:$B$33,1,0),A44=VLOOKUP($A44,'INV(an)'!$B$2:$B$16,1,0)),"") ->  | H44: =IF(ISNA(AND(A44=VLOOKUP($A44,'REC(an)'!$B$2:$B$33,1,0),A44=VLOOKUP($A44,'INV(an)'!$B$2:$B$16,1,0))),"",AND(A44=VLOOKUP($A44,'REC(an)'!$B$2:$B$33,1,0),A44=VLOOKUP($A44,'INV(an)'!$B$2:$B$16,1,0))) -> 
A45: 25053 | B45: 2009-07-02 | C45: =IFERROR(AND(A45=VLOOKUP($A45,'REC(an)'!$B$2:$B$33,1,0),A45=VLOOKUP($A45,'INV(an)'!$B$2:$B$16,1,0)),"") ->  | H45: =IF(ISNA(AND(A45=VLOOKUP($A45,'REC(an)'!$B$2:$B$33,1,0),A45=VLOOKUP($A45,'INV(an)'!$B$2:$B$16,1,0))),"",AND(A45=VLOOKUP($A45,'REC(an)'!$B$2:$B$33,1,0),A45=VLOOKUP($A45,'INV(an)'!$B$2:$B$16,1,0))) -> 
A46: 25054 | B46: 2009-07-03 | C46: =IFERROR(AND(A46=VLOOKUP($A46,'REC(an)'!$B$2:$B$33,1,0),A46=VLOOKUP($A46,'INV(an)'!$B$2:$B$16,1,0)),"") ->  | H46: =IF(ISNA(AND(A46=VLOOKUP($A46,'REC(an)'!$B$2:$B$33,1,0),A46=VLOOKUP($A46,'INV(an)'!$B$2:$B$16,1,0))),"",AND(A46=VLOOKUP($A46,'REC(an)'!$B$2:$B$33,1,0),A46=VLOOKUP($A46,'INV(an)'!$B$2:$B$16,1,0))) -> 
A47: 25055 | B47: 2009-07-04 | C47: =IFERROR(AND(A47=VLOOKUP($A47,'REC(an)'!$B$2:$B$33,1,0),A47=VLOOKUP($A47,'INV(an)'!$B$2:$B$16,1,0)),"") ->  | H47: =IF(ISNA(AND(A47=VLOOKUP($A47,'REC(an)'!$B$2:$B$33,1,0),A47=VLOOKUP($A47,'INV(an)'!$B$2:$B$16,1,0))),"",AND(A47=VLOOKUP($A47,'REC(an)'!$B$2:$B$33,1,0),A47=VLOOKUP($A47,'INV(an)'!$B$2:$B$16,1,0))) -> 
A48: 25056 | B48: 2009-07-05 | C48: =IFERROR(AND(A48=VLOOKUP($A48,'REC(an)'!$B$2:$B$33,1,0),A48=VLOOKUP($A48,'INV(an)'!$B$2:$B$16,1,0)),"") ->  | H48: =IF(ISNA(AND(A48=VLOOKUP($A48,'REC(an)'!$B$2:$B$33,1,0),A48=VLOOKUP($A48,'INV(an)'!$B$2:$B$16,1,0))),"",AND(A48=VLOOKUP($A48,'REC(an)'!$B$2:$B$33,1,0),A48=VLOOKUP($A48,'INV(an)'!$B$2:$B$16,1,0))) -> 
A49: 25057 | B49: 2009-07-06 | C49: =IFERROR(AND(A49=VLOOKUP($A49,'REC(an)'!$B$2:$B$33,1,0),A49=VLOOKUP($A49,'INV(an)'!$B$2:$B$16,1,0)),"") ->  | H49: =IF(ISNA(AND(A49=VLOOKUP($A49,'REC(an)'!$B$2:$B$33,1,0),A49=VLOOKUP($A49,'INV(an)'!$B$2:$B$16,1,0))),"",AND(A49=VLOOKUP($A49,'REC(an)'!$B$2:$B$33,1,0),A49=VLOOKUP($A49,'INV(an)'!$B$2:$B$16,1,0))) -> 
A50: 25058 | B50: 2009-07-07 | C50: =IFERROR(AND(A50=VLOOKUP($A50,'REC(an)'!$B$2:$B$33,1,0),A50=VLOOKUP($A50,'INV(an)'!$B$2:$B$16,1,0)),"") ->  | H50: =IF(ISNA(AND(A50=VLOOKUP($A50,'REC(an)'!$B$2:$B$33,1,0),A50=VLOOKUP($A50,'INV(an)'!$B$2:$B$16,1,0))),"",AND(A50=VLOOKUP($A50,'REC(an)'!$B$2:$B$33,1,0),A50=VLOOKUP($A50,'INV(an)'!$B$2:$B$16,1,0))) -> 
A51: 25059 | B51: 2009-07-08 | C51: =IFERROR(AND(A51=VLOOKUP($A51,'REC(an)'!$B$2:$B$33,1,0),A51=VLOOKUP($A51,'INV(an)'!$B$2:$B$16,1,0)),"") ->  | H51: =IF(ISNA(AND(A51=VLOOKUP($A51,'REC(an)'!$B$2:$B$33,1,0),A51=VLOOKUP($A51,'INV(an)'!$B$2:$B$16,1,0))),"",AND(A51=VLOOKUP($A51,'REC(an)'!$B$2:$B$33,1,0),A51=VLOOKUP($A51,'INV(an)'!$B$2:$B$16,1,0))) -> 
A52: 25060 | B52: 2009-07-09 | C52: =IFERROR(AND(A52=VLOOKUP($A52,'REC(an)'!$B$2:$B$33,1,0),A52=VLOOKUP($A52,'INV(an)'!$B$2:$B$16,1,0)),"") ->  | H52: =IF(ISNA(AND(A52=VLOOKUP($A52,'REC(an)'!$B$2:$B$33,1,0),A52=VLOOKUP($A52,'INV(an)'!$B$2:$B$16,1,0))),"",AND(A52=VLOOKUP($A52,'REC(an)'!$B$2:$B$33,1,0),A52=VLOOKUP($A52,'INV(an)'!$B$2:$B$16,1,0))) -> 
A53: 25061 | B53: 2009-07-10 | C53: =IFERROR(AND(A53=VLOOKUP($A53,'REC(an)'!$B$2:$B$33,1,0),A53=VLOOKUP($A53,'INV(an)'!$B$2:$B$16,1,0)),"") ->  | H53: =IF(ISNA(AND(A53=VLOOKUP($A53,'REC(an)'!$B$2:$B$33,1,0),A53=VLOOKUP($A53,'INV(an)'!$B$2:$B$16,1,0))),"",AND(A53=VLOOKUP($A53,'REC(an)'!$B$2:$B$33,1,0),A53=VLOOKUP($A53,'INV(an)'!$B$2:$B$16,1,0))) -> 
A54: 25062 | B54: 2009-07-11 | C54: =IFERROR(AND(A54=VLOOKUP($A54,'REC(an)'!$B$2:$B$33,1,0),A54=VLOOKUP($A54,'INV(an)'!$B$2:$B$16,1,0)),"") ->  | H54: =IF(ISNA(AND(A54=VLOOKUP($A54,'REC(an)'!$B$2:$B$33,1,0),A54=VLOOKUP($A54,'INV(an)'!$B$2:$B$16,1,0))),"",AND(A54=VLOOKUP($A54,'REC(an)'!$B$2:$B$33,1,0),A54=VLOOKUP($A54,'INV(an)'!$B$2:$B$16,1,0))) -> 
A55: 25063 | B55: 2009-07-12 | C55: =IFERROR(AND(A55=VLOOKUP($A55,'REC(an)'!$B$2:$B$33,1,0),A55=VLOOKUP($A55,'INV(an)'!$B$2:$B$16,1,0)),"") ->  | H55: =IF(ISNA(AND(A55=VLOOKUP($A55,'REC(an)'!$B$2:$B$33,1,0),A55=VLOOKUP($A55,'INV(an)'!$B$2:$B$16,1,0))),"",AND(A55=VLOOKUP($A55,'REC(an)'!$B$2:$B$33,1,0),A55=VLOOKUP($A55,'INV(an)'!$B$2:$B$16,1,0))) -> 
A56: 25064 | B56: 2009-07-13 | C56: =IFERROR(AND(A56=VLOOKUP($A56,'REC(an)'!$B$2:$B$33,1,0),A56=VLOOKUP($A56,'INV(an)'!$B$2:$B$16,1,0)),"") ->  | H56: =IF(ISNA(AND(A56=VLOOKUP($A56,'REC(an)'!$B$2:$B$33,1,0),A56=VLOOKUP($A56,'INV(an)'!$B$2:$B$16,1,0))),"",AND(A56=VLOOKUP($A56,'REC(an)'!$B$2:$B$33,1,0),A56=VLOOKUP($A56,'INV(an)'!$B$2:$B$16,1,0))) -> 
A57: 25065 | B57: 2009-07-14 | C57: =IFERROR(AND(A57=VLOOKUP($A57,'REC(an)'!$B$2:$B$33,1,0),A57=VLOOKUP($A57,'INV(an)'!$B$2:$B$16,1,0)),"") ->  | H57: =IF(ISNA(AND(A57=VLOOKUP($A57,'REC(an)'!$B$2:$B$33,1,0),A57=VLOOKUP($A57,'INV(an)'!$B$2:$B$16,1,0))),"",AND(A57=VLOOKUP($A57,'REC(an)'!$B$2:$B$33,1,0),A57=VLOOKUP($A57,'INV(an)'!$B$2:$B$16,1,0))) -> 
A58: 25066 | B58: 2009-07-15 | C58: =IFERROR(AND(A58=VLOOKUP($A58,'REC(an)'!$B$2:$B$33,1,0),A58=VLOOKUP($A58,'INV(an)'!$B$2:$B$16,1,0)),"") ->  | H58: =IF(ISNA(AND(A58=VLOOKUP($A58,'REC(an)'!$B$2:$B$33,1,0),A58=VLOOKUP($A58,'INV(an)'!$B$2:$B$16,1,0))),"",AND(A58=VLOOKUP($A58,'REC(an)'!$B$2:$B$33,1,0),A58=VLOOKUP($A58,'INV(an)'!$B$2:$B$16,1,0))) -> 
A59: 25067 | B59: 2009-07-16 | C59: =IFERROR(AND(A59=VLOOKUP($A59,'REC(an)'!$B$2:$B$33,1,0),A59=VLOOKUP($A59,'INV(an)'!$B$2:$B$16,1,0)),"") ->  | H59: =IF(ISNA(AND(A59=VLOOKUP($A59,'REC(an)'!$B$2:$B$33,1,0),A59=VLOOKUP($A59,'INV(an)'!$B$2:$B$16,1,0))),"",AND(A59=VLOOKUP($A59,'REC(an)'!$B$2:$B$33,1,0),A59=VLOOKUP($A59,'INV(an)'!$B$2:$B$16,1,0))) -> 
A60: 25068 | B60: 2009-07-17 | C60: =IFERROR(AND(A60=VLOOKUP($A60,'REC(an)'!$B$2:$B$33,1,0),A60=VLOOKUP($A60,'INV(an)'!$B$2:$B$16,1,0)),"") ->  | H60: =IF(ISNA(AND(A60=VLOOKUP($A60,'REC(an)'!$B$2:$B$33,1,0),A60=VLOOKUP($A60,'INV(an)'!$B$2:$B$16,1,0))),"",AND(A60=VLOOKUP($A60,'REC(an)'!$B$2:$B$33,1,0),A60=VLOOKUP($A60,'INV(an)'!$B$2:$B$16,1,0))) -> 
A61: 25069 | B61: 2009-07-18 | C61: =IFERROR(AND(A61=VLOOKUP($A61,'REC(an)'!$B$2:$B$33,1,0),A61=VLOOKUP($A61,'INV(an)'!$B$2:$B$16,1,0)),"") ->  | H61: =IF(ISNA(AND(A61=VLOOKUP($A61,'REC(an)'!$B$2:$B$33,1,0),A61=VLOOKUP($A61,'INV(an)'!$B$2:$B$16,1,0))),"",AND(A61=VLOOKUP($A61,'REC(an)'!$B$2:$B$33,1,0),A61=VLOOKUP($A61,'INV(an)'!$B$2:$B$16,1,0))) -> 
A62: 25070 | B62: 2009-07-19 | C62: =IFERROR(AND(A62=VLOOKUP($A62,'REC(an)'!$B$2:$B$33,1,0),A62=VLOOKUP($A62,'INV(an)'!$B$2:$B$16,1,0)),"") ->  | H62: =IF(ISNA(AND(A62=VLOOKUP($A62,'REC(an)'!$B$2:$B$33,1,0),A62=VLOOKUP($A62,'INV(an)'!$B$2:$B$16,1,0))),"",AND(A62=VLOOKUP($A62,'REC(an)'!$B$2:$B$33,1,0),A62=VLOOKUP($A62,'INV(an)'!$B$2:$B$16,1,0))) -> 
A63: 25071 | B63: 2009-07-20 | C63: =IFERROR(AND(A63=VLOOKUP($A63,'REC(an)'!$B$2:$B$33,1,0),A63=VLOOKUP($A63,'INV(an)'!$B$2:$B$16,1,0)),"") ->  | H63: =IF(ISNA(AND(A63=VLOOKUP($A63,'REC(an)'!$B$2:$B$33,1,0),A63=VLOOKUP($A63,'INV(an)'!$B$2:$B$16,1,0))),"",AND(A63=VLOOKUP($A63,'REC(an)'!$B$2:$B$33,1,0),A63=VLOOKUP($A63,'INV(an)'!$B$2:$B$16,1,0))) -> 
A64: 25072 | B64: 2009-07-21 | C64: =IFERROR(AND(A64=VLOOKUP($A64,'REC(an)'!$B$2:$B$33,1,0),A64=VLOOKUP($A64,'INV(an)'!$B$2:$B$16,1,0)),"") ->  | H64: =IF(ISNA(AND(A64=VLOOKUP($A64,'REC(an)'!$B$2:$B$33,1,0),A64=VLOOKUP($A64,'INV(an)'!$B$2:$B$16,1,0))),"",AND(A64=VLOOKUP($A64,'REC(an)'!$B$2:$B$33,1,0),A64=VLOOKUP($A64,'INV(an)'!$B$2:$B$16,1,0))) -> 
A65: 25073 | B65: 2009-07-22 | C65: =IFERROR(AND(A65=VLOOKUP($A65,'REC(an)'!$B$2:$B$33,1,0),A65=VLOOKUP($A65,'INV(an)'!$B$2:$B$16,1,0)),"") ->  | H65: =IF(ISNA(AND(A65=VLOOKUP($A65,'REC(an)'!$B$2:$B$33,1,0),A65=VLOOKUP($A65,'INV(an)'!$B$2:$B$16,1,0))),"",AND(A65=VLOOKUP($A65,'REC(an)'!$B$2:$B$33,1,0),A65=VLOOKUP($A65,'INV(an)'!$B$2:$B$16,1,0))) -> 
A66: 25074 | B66: 2010-07-21 | C66: =IFERROR(AND(A66=VLOOKUP($A66,'REC(an)'!$B$2:$B$33,1,0),A66=VLOOKUP($A66,'INV(an)'!$B$2:$B$16,1,0)),"") -> TRUE | H66: =IF(ISNA(AND(A66=VLOOKUP($A66,'REC(an)'!$B$2:$B$33,1,0),A66=VLOOKUP($A66,'INV(an)'!$B$2:$B$16,1,0))),"",AND(A66=VLOOKUP($A66,'REC(an)'!$B$2:$B$33,1,0),A66=VLOOKUP($A66,'INV(an)'!$B$2:$B$16,1,0))) -> TRUE

Sheet REC(an)
A1: Rec# | B1: PO | C1: Date
A2: 22620 | B2: 25010 | C2: 2009-05-24
A3: 62480 | B3: 25012 | C3: 2010-05-25
A4: 71029 | B4: 25014 | C4: 2011-05-26
A5: 30367 | B5: 25011 | C5: 2012-05-26
A6: 82163 | B6: 25013 | C6: 2013-05-27
A7: 96494 | B7: 25027 | C7: 2014-05-28
A8: 21960 | B8: 25028 | C8: 2015-05-29
A9: 13496 | B9: 25024 | C9: 2016-05-29
A10: 47852 | B10: 25026 | C10: 2017-05-30
A11: 82319 | B11: 25028 | C11: 2018-05-31
A12: 85104 | B12: 25030 | C12: 2019-06-01
A13: 27775 | B13: 25032 | C13: 2020-06-01
A14: 47124 | B14: 25034 | C14: 2021-06-02
A15: 95387 | B15: 25036 | C15: 2022-06-03
A16: 91781 | B16: 25038 | C16: 2023-06-04
A17: 74449 | B17: 25040 | C17: 2024-06-04
A18: 39387 | B18: 25042 | C18: 2025-06-05
A19: 41153 | B19: 25044 | C19: 2026-06-06
A20: 52367 | B20: 25046 | C20: 2027-06-07
A21: 27576 | B21: 25048 | C21: 2028-06-07
A22: 24548 | B22: 25050 | C22: 2029-06-08
A23: 89055 | B23: 25052 | C23: 2030-06-09
A24: 61007 | B24: 25054 | C24: 2031-06-10
A25: 63399 | B25: 25056 | C25: 2032-06-10
A26: 47086 | B26: 25058 | C26: 2033-06-11
A27: 14940 | B27: 25060 | C27: 2034-06-12
A28: 80120 | B28: 25062 | C28: 2035-06-13
A29: 32820 | B29: 25064 | C29: 2036-06-13
A30: 81972 | B30: 25066 | C30: 2037-06-14
A31: 49301 | B31: 25068 | C31: 2038-06-15
A32: 42262 | B32: 25070 | C32: 2039-06-16
A33: 323 | B33: 25074 | C33: 2010-07-22

Sheet INV(an)
A1: Inv# | B1: PO | C1: Date
A2: G33398 | B2: 25010 | C2: 2010-05-27
A3: Y96346 | B3: 25014 | C3: 2010-05-28
A4: G15281 | B4: 25011 | C4: 2010-05-28
A5: E66862 | B5: 25013 | C5: 2010-05-29
A6: N13722 | B6: 25026 | C6: 2010-05-30
A7: J84276 | B7: 25030 | C7: 2010-05-31
A8: M14834 | B8: 25034 | C8: 2010-06-01
A9: D58891 | B9: 25038 | C9: 2010-06-02
A10: L50179 | B10: 25042 | C10: 2010-06-03
A11: Z79465 | B11: 25046 | C11: 2010-06-04
A12: J78185 | B12: 25050 | C12: 2010-06-05
A13: P87275 | B13: 25027 | C13: 2010-06-06
A14: J84477 | B14: 25028 | C14: 2010-06-07
A15: rtdtrdrt | B15: 25012 | C15: 2010-06-08
A16: rtrtrtdd | B16: 25074 | C16: 2010-07-22
